{"text_format":"1","workbook":"xlsx","n_sheets":17,"sheets":["WSTĘP","C.1.1 MONOGRAFIE","C.1.2. CZASOPISMA","C.1.3. PROJEKTY","C.1.4. REFERATY","C.1.5 NAGRODY","C.2.1. UTWORY MUZ","C.2.2. PŁYTY MUZ.","C.2.3. UTW. FILMOWE","C.2.4. SPEKTAKLE","C.2.5. CHOREOGRAFIE","C.2.6. DZIEŁA PLAST. ARCHIT.","C.2.7. IND. WYSTAWY PLAST.","C.2.8. NAGR. ARTYST.","C.3. SPORTOWE","Instrukcje NA","Instrukcje S"],"not_rendered":{"charts":0,"images":9,"macros":1,"external_links":0,"defined_names":0,"comments":0,"pivot_tables":0},"unopened":[],"bounds":{"document_bytes":16777216,"sheet_cells":100000,"rows_first":2000,"rows_last":500,"rows_between":2000,"halvings":0,"cell_chars":16384,"cell_head_chars":4096},"cells_cut":0,"cells_raw":0,"read":"whole","date_system":"1900"}

{"sheet":"WSTĘP","index":0,"n_rows":25,"n_cols":4,"rows_kept":25,"cut":false,"hidden":false,"merged":[[2,1,2,2]]}
["Wymagane włączenie makr "]
[]
[null,"Generator opisów osiągnięć we wniosku o przyznanie stypendium ministra\nza znaczące osiągnięcia dla studentów"]
[]
[]
[]
[null,"Proszę wskazać rodzaj osiągnięcia:"]
[]
[null,"OSIĄGNIĘCIA NAUKOWE","OSIĄGNIĘCIA ARTYSTYCZNE"]
[null,"Monografie naukowe lub rozdziały w monografiach","Utwory muzyczne"]
[null,"Artykuły w czasopismach naukowych","Płyty muzyczne"]
[null,"Udział w projektach badawczych","Utwory audiowizualne, w tym filmowe"]
[null,"Referaty na konferencjach","Spektakle teatralne, operowe, operetkowe, baletowe lub musicalowe"]
[null,"Nagrody naukowe","Choreografie"]
[null,null,"Dzieła plastyczne i architektoniczne"]
[null,null,"Indywidualne wystawy plastyczne"]
[null,null,"Nagrody artystyczne"]
[null,"OSIĄGNIĘCIA SPORTOWE"]
[null,"Kliknij tutaj","Proszę najpierw zapoznać się z instrukcjami -->","os. naukowe i artystyczne"]
[null,null,null,"os. sportowe"]
[]
[]
[]
[]
["Wersja BETA"]

{"sheet":"C.1.1 MONOGRAFIE","index":1,"n_rows":81,"n_cols":23,"rows_kept":81,"cut":false,"hidden":false,"merged":[[43,3,43,12],[31,3,31,5],[33,3,33,7],[35,3,35,4],[39,3,39,4],[41,3,41,4],[41,6,41,7],[29,3,29,7],[2,0,2,12],[16,3,16,12],[18,3,18,12],[20,3,20,4],[23,3,24,12]]}
["1. Monografie naukowe",null,null,null,null,null,null,null,null,null,null,null,null,null,null,null,null,null,null,null,null,null,"POWRÓT"]
[]
["Autorstwo lub współautorstwo monografii naukowej lub rozdziału w monografii naukowej  wydanej przez wydawnictwo ujęte w wykazie wydawnictw sporządzonym zgodnie z przepisami wydanymi na podstawie art. 267 ust. 2 pkt 2 ustawy z dnia 20 lipca 2018 r. – Prawo o szkolnictwie wyższym i nauce (Dz. U. poz. 1668, z późn. zm.)"]
[]
["Wyjaśnienie:"]
["We wniosku można wskazać wyłącznie:"]
["·        autorstwo lub współautorstwo rozdziału lub całej monografii (redakcja naukowa monografii - nie jest punktowana)"]
["·        monografie wydane przez wydawnictwo ujęte w wykazie wydawnictw MNiSW (wydawnictwa spoza wykazu - nie są punktowane)"]
["·        monografie wydane do dnia 30 września 2019 r. (publikacje np. w recenzji, przyjęte do druku, w druku - nie są punktowane)"]
[]
["Wykaz wydawnictw:",null,"Wykaz 2019"]
[]
["Oznaczenie monografii",null,null,null,"oznaczenie literowe we wniosku (osiągnięcia w danej kategorii powinny być oznaczone kolejnymi literami alfabetu)",null,null,null,null,null,null,null,null,{"$f":"IF(D13=\"\",\"\",\"v\")","v":""},{"$f":"IF(N13=\"v\",1,0)","v":0}]
[]
["Jestem autorem",null,null,null," rozdziału w monografii",null,null,null," całej monografii",null,{"$f":"IF(AND(D15=\"\",H15=\"\"),\"Proszę wybrać\",IF(AND(D15=\"x\",H15=\"x\"),\"Proszę wybrać jedną z opcji\",\"\"))","v":"Proszę wybrać"},null,null,{"$f":"IF(OR(D15=\"x\",H15=\"x\"),IF(D15&H15=\"xx\",\"\",\"v\"),\"\")","v":""},{"$f":"IF(N15=\"v\",1,0)","v":0}]
[]
["Tytuł monografii naukowej",null,null,null,null,null,null,null,null,null,null,null,null,{"$f":"IF(D17=\"\",\"\",\"v\")","v":""},0]
[]
["Tytuł rozdziału",null,null,null,null,null,null,null,null,null,null,null,null,{"$f":"IF(OR(P19=\"v\",Q19=\"v\"),\"v\",\"\")","v":""},0,{"$f":"IF(NOT(D19=\"\"),(IF(D15=\"x\",\"v\",\"\")),\"\")","v":""},{"$f":"IF(D19=\"\",(IF(H15=\"x\",\"v\",\"\")),\"\")","v":""}]
[null,null,null,{"$f":"IF(H15=\"x\",\"W przypadku autorstwa całej monografii pole 'tytuł rozdziału' należy pozostawić puste\",\"\")","v":""}]
["Wkład autorski studenta",null,null,null,null,"%","w przypadku autorstwa rozdziału monografii należy podać wkład autorski",null,null,null,null,null,null,{"$f":"IF(D21=\"\",\"\",\"v\")","v":""},0]
[null,null,null,null,null,null,"dotyczący rozdziału, a nie całej monografii"]
[null,null,null,{"$f":"IF(D24=\"\",IF(D21=\"\",\"\",IF(D21<100,\"Gdy wkład autorski jest mniejszy niż 100% należy wypełnić pole poniżej\",\"\")),\"\")","v":""}]
["Imiona i nazwiska współautorów",null,null,null,null,null,null,null,null,null,null,null,null,{"$f":"IF(OR(P24=\"v\",Q24=\"v\"),\"v\",\"\")","v":""},0,{"$f":"IF(D24=\"\",(IF(D21=100,\"v\",\"\")),\"\")","v":""},{"$f":"IF(NOT(D24=\"\"),(IF(NOT(D21=100),\"v\",\"\")),\"\")","v":""}]
["(wraz z procentowym wkładem)"]
[null,null,null,{"$f":"IF(AND(D21=100,NOT(D24=\"\")),\"W przypadku 100% wkładu autorskiego, powyższe pole należy pozostawić puste.\",\"\")","v":""}]
[null,null,null,"Wkład autorski wszystkich współautorów musi sumować się do 100%.  \n"]
[null,null,null,"Należy podać w formacie „imię, nazwisko – procent” np. „Jan Kowalski – 25%”. "]
[]
["Nazwa wydawnictwa",null,null,null,null,null,null,null,"Należy wpisać wydawnictwo z wykazu",null,null,null,null,{"$f":"IF(D30=\"\",\"\",\"v\")","v":""},0]
[]
["Liczba punktów w wykazie wydawnictw",null,null,null,null,null,"Wpisać liczbę punktów z wykazu przypisaną do danego wydawnictwa",null,null,null,null,null,null,{"$f":"IF(D32=\"\",\"\",\"v\")","v":""},0]
[]
["Miejsce wydania, ",null,null,null,null,null,null,null,"Kraj, miejscowość siedziby wydawnictwa",null,null,null,null,{"$f":"IF(D34=\"\",\"\",\"v\")","v":""},0]
[]
["Miesiąc i rok wydania",null,null,null,null,null,null,null,null,null,null,null,null,{"$f":"IF(D36=\"\",\"\",\"v\")","v":""},0]
[null,null,null,"W przypadku trudności z ustaleniem miesiąca wydania, należy skontaktować się z wydawnictwem."]
[null,null,null,"Nie należy wskazywać publikacji posiadających w dniu 30.09.2019 r. status „w recenzji”, „przyjętych do druku” czy „w druku”."]
[]
["Data druku lub ukazania się monografii",null,null,null,null,null,"Data druku lub ukazania się monografii najczęściej pokrywa się z datą wydania",null,null,null,null,null,null,{"$f":"IF(D40=\"\",\"\",\"v\")","v":""},0]
[]
["Identyfikator monografii",null,null,null,null,null,null,null,"Należy wpisać numer ISBN, eISBN,  ISMN lub DOI",null,null,null,null,{"$f":"IF(OR(D42=\"\",G42=\"\"),\"\",\"v\")","v":""},0]
[]
["Uwagi (pole nieobowiązkowe)"]
[]
["Tekst poniżej do skopiowania do formularza wniosku (CTRL-C)",null,null,null,null,null,null,{"$f":"TEXT(L52,\"0%\")","v":"0%"},{"$f":"IF(H46=\"100%\",\"\",\"uzupełnij wymagane pola\")","v":"uzupełnij wymagane pola"}]
[{"$f":"IF(D13=\"\",\"\",D13&\") \"&I56&\", \"&I51&\", wkład: \"&D21&\"\"&I50&\", \"&I52&\", \"&D30&\", \"&D34&\", wyd. \"&I53&\" (\"&I54&\"), \"&D42&\" \"&G42&\", \"&D32&I55)","v":""}]
[]
[]
[null,null,null,"x","ISBN",null,"poziom I - 200 pkt",null,{"$f":"IF(D15=\"x\",\"% rozdziału\",IF(H15=\"x\",\"% całej monografii\",\"\"))","v":""},null,null,{"$f":"SUM(O13:O42)","v":0},12]
[null,null,null,null,"eISBN",null,"poziom II - 80 pkt",null,{"$f":"IF(D19=\"\",\"(jedyny autor)\",D19)","v":"(jedyny autor)"}]
[null,null,null,null,"ISMN",null,null,null,{"$f":"IF(D24=\"\",\"brak współautorów\",\"współautorstwo: \"&D24)","v":"brak współautorów"},null,null,{"$f":"L50/M50","v":0}]
[null,null,null,"a","DOI",null,null,null,{"$f":"TEXT(D36,\"mm.rrrr\")","v":"01.1900"}]
[null,null,null,"b",null,null,null,null,{"$f":"TEXT(D40,\"mm.rrrr\")","v":"01.1900"}]
[null,null,null,"c",null,null,null,null,{"$f":"IF(D44=\"\",\"\",\", uwagi: \"&D44)","v":""}]
[null,null,null,"d",null,null,null,null,{"$f":"UPPER(D17)","v":""}]
[null,null,null,"e"]
[null,null,null,"f"]
[null,null,null,"g"]
[null,null,null,"h"]
[null,null,null,"i"]
[null,null,null,"j"]
[null,null,null,"k"]
[null,null,null,"l"]
[null,null,null,"m"]
[null,null,null,"n"]
[null,null,null,"o"]
[null,null,null,"p"]
[null,null,null,"q"]
[null,null,null,"r"]
[null,null,null,"s"]
[null,null,null,"t"]
[null,null,null,"u"]
[null,null,null,"w"]
[null,null,null,"x"]
[null,null,null,"y"]
[null,null,null,"z"]
[]
[]
[]
[null,null,null," "]

{"sheet":"C.1.2. CZASOPISMA","index":2,"n_rows":79,"n_cols":22,"rows_kept":79,"cut":false,"hidden":false,"merged":[[41,3,41,12],[3,0,3,12],[15,3,15,4],[31,3,31,7],[33,3,33,4],[37,3,37,4],[39,3,39,4],[39,6,39,7],[29,3,29,7],[2,0,2,12],[17,3,17,12],[19,3,19,12],[21,3,21,4],[23,3,24,12]]}
["2. Czasopisma naukowe",null,null,null,null,null,null,null,null,null,null,null,null,null,null,null,null,null,null,null,null,"POWRÓT"]
[]
["Autorstwo lub współautorstwo artykułu naukowego opublikowanego w czasopiśmie naukowym lub w recenzowanych materiałach z konferencji międzynarodowych, ujętych w wykazie tych czasopism i materiałów sporządzonym zgodnie z przepisami wydanymi na podstawie art. 267 ust. 2 pkt 2 ustawy z dnia 20 lipca 2018 r. – Prawo o szkolnictwie wyższym i nauce\n"]
["Zgodnie z § 17 ust. 3 rozporządzenia, w roku 2019 we wnioskach może zostać przedstawione autorstwo lub współautorstwo artykułu naukowego opublikowanego w czasopiśmie naukowym ujętym w wykazie czasopism naukowych ogłoszonym przez ministra właściwego do spraw nauki zgodnie z przepisami wydanymi na podstawie art. 44 ust. 2 ustawy z dnia 30 kwietnia 2010 r. o zasadach finansowania nauki."]
[]
["Wyjaśnienie:"]
["We wniosku można wskazać wyłącznie:"]
["·        artykuły w czasopismach lub materiałach konferencyjnych ujętych w nowym wykazie czasopism MNiSW (obecnie trwają prace nad utworzeniem wykazu)"]
["·        artykuły w czasopismach ujętych w dotychczasowym wykazie czasopism naukowych MNiSW opracowanym na podstawie ocen z lat 2013-2016 "]
["·        numery czasopism wydane do dnia 30 września 2019 r. (publikacje np. w recenzji, przyjęte do druku, w druku - nie są punktowane)"]
[]
["Wykaz czasopism:",null,"Wykaz 2013-2016"]
[]
["Oznaczenie artykułu",null,null,null,"oznaczenie literowe we wniosku (osiągnięcia w danej kategorii powinny być oznaczone kolejnymi literami alfabetu)",null,null,null,null,null,null,null,null,{"$f":"IF(D14=\"\",\"\",\"v\")","v":""},{"$f":"IF(N14=\"v\",1,0)","v":0}]
[]
["Czasopismo z wykazu MNISW",null,null,null,null,"Należy wybrać listę",null,null,null,"Należy wpisać liczbę punktów przypisaną do danego czasopisma",null,null,null,{"$f":"IF(AND(P16=\"v\",Q16=\"v\"),\"v\",\"\")","v":""},{"$f":"IF(N16=\"v\",1,0)","v":0},{"$f":"IF(OR(D16=G48,D16=G49,D16=G50),\"v\",\"\")","v":""},{"$f":"IF(I16=\"\",\"\",\"v\")","v":""}]
[]
["Tytuł czasopisma",null,null,null,null,null,null,null,null,null,null,null,null,{"$f":"IF(D18=\"\",\"\",\"v\")","v":""},{"$f":"IF(N18=\"v\",1,0)","v":0}]
[]
["Tytuł artykułu naukowego",null,null,null,null,null,null,null,null,null,null,null,null,{"$f":"IF(D20=\"\",\"\",\"v\")","v":""},0]
[]
["Wkład autorski studenta",null,null,null,null,"%",null,null,null,null,null,null,null,{"$f":"IF(D22=\"\",\"\",\"v\")","v":""},0]
[null,null,null,{"$f":"IF(D24=\"\",IF(D22=\"\",\"\",IF(D22<100,\"Gdy wkład autorski jest mniejszy niż 100% należy wypełnić pole poniżej\",\"\")),\"\")","v":""}]
["Imiona i nazwiska współautorów",null,null,null,null,null,null,null,null,null,null,null,null,{"$f":"IF(OR(P24=\"v\",Q24=\"v\"),\"v\",\"\")","v":""},0,{"$f":"IF(D24=\"\",(IF(D22=100,\"v\",\"\")),\"\")","v":""},{"$f":"IF(NOT(D24=\"\"),(IF(NOT(D22=100),\"v\",\"\")),\"\")","v":""}]
["(wraz z procentowym wkładem)"]
[null,null,null,{"$f":"IF(AND(D22=100,NOT(D24=\"\")),\"W przypadku 100% wkładu autorskiego, powyższe pole należy pozostawić puste.\",\"\")","v":""}]
[null,null,null,"Wkład autorski wszystkich współautorów musi sumować się do 100%.  \n"]
[null,null,null,"Należy podać w formacie „imię, nazwisko – procent” np. „Jan Kowalski – 25%”. "]
[]
["Nazwa wydawnictwa",null,null,null,null,null,null,null,"Należy wpisać wydawnictwo z wykazu",null,null,null,null,{"$f":"IF(D30=\"\",\"\",\"v\")","v":""},0]
[]
["Miejsce wydania, ",null,null,null,null,null,null,null,"Kraj, miejscowość siedziby wydawnictwa",null,null,null,null,{"$f":"IF(D32=\"\",\"\",\"v\")","v":""},0]
[]
["Miesiąc i rok wydania",null,null,null,null,null,null,null,null,null,null,null,null,{"$f":"IF(D34=\"\",\"\",\"v\")","v":""},0]
[null,null,null,"W przypadku trudności z ustaleniem miesiąca wydania, należy skontaktować się z wydawnictwem."]
[null,null,null,"Nie należy wskazywać publikacji posiadających w dniu 30.09.2019 r. status „w recenzji”, „przyjętych do druku” czy „w druku”."]
[]
["Data druku lub ukazania się artykułu",null,null,null,null,null,"Data druku lub ukazania się numeru czasopisma najczęściej pokrywa się z datą wydania",null,null,null,null,null,null,{"$f":"IF(D38=\"\",\"\",\"v\")","v":""},0]
[]
["Identyfikator czasopisma",null,null,null,null,null,null,null,"Należy wpisać numer ISSN, eISSN lub DOI",null,null,null,null,{"$f":"IF(OR(D40=\"\",G40=\"\"),\"\",\"v\")","v":""},0]
[]
["Uwagi (pole nieobowiązkowe)"]
[]
["Tekst poniżej do skopiowania do formularza wniosku (CTR-C)",null,null,null,null,null,null,{"$f":"TEXT(L50,\"0%\")","v":"0%"},{"$f":"IF(H44=\"100%\",\"\",\"uzupełnij wymagane pola\")","v":"uzupełnij wymagane pola"}]
[{"$f":"IF(D14=\"\",\"\",D14&\") \"&I56&\", \"&I49&\", wkład: \"&D22&\"%\"&I48&\", \"&I50&\", \"&D30&\", \"&D32&\", wyd. \"&I51&\" (\"&I52&\"), \"&D40&\" \"&G40&\", \"&I54&I53)","v":""}]
[]
[]
[null,null,null,"x","ISSN",null,"Lista A",null,null,null,null,{"$f":"SUM(O14:O40)","v":0},11]
[null,null,null,null,"eISSN",null,"Lista B",null,{"$f":"IF(D20=\"\",\"(jedyny autor)\",D20)","v":"(jedyny autor)"}]
[null,null,null,null,"DOI",null,"Lista C",null,{"$f":"IF(D24=\"\",\"brak współautorów\",\"współautorstwo: \"&D24)","v":"brak współautorów"},null,null,{"$f":"L48/M48","v":0}]
[null,null,null,"a",null,null,null,null,{"$f":"TEXT(D34,\"mm.rrrr\")","v":"01.1900"}]
[null,null,null,"b",null,null,null,null,{"$f":"TEXT(D38,\"mm.rrrr\")","v":"01.1900"}]
[null,null,null,"c",null,null,null,null,{"$f":"IF(D42=\"\",\"\",\", uwagi: \"&D42)","v":""}]
[null,null,null,"d",null,null,null,null,{"$f":"D16&\" - \"&I16&\" pkt\"","v":" -  pkt"}]
[null,null,null,"e"]
[null,null,null,"f",null,null,null,null,{"$f":"UPPER(D18)","v":""}]
[null,null,null,"g"]
[null,null,null,"h"]
[null,null,null,"i"]
[null,null,null,"j"]
[null,null,null,"k"]
[null,null,null,"l"]
[null,null,null,"m"]
[null,null,null,"n"]
[null,null,null,"o"]
[null,null,null,"p"]
[null,null,null,"q"]
[null,null,null,"r"]
[null,null,null,"s"]
[null,null,null,"t"]
[null,null,null,"u"]
[null,null,null,"w"]
[null,null,null,"x"]
[null,null,null,"y"]
[null,null,null,"z"]
[]
[]
[]
[null,null,null," "]

{"sheet":"C.1.3. PROJEKTY","index":3,"n_rows":81,"n_cols":20,"rows_kept":81,"cut":false,"hidden":false,"merged":[[2,0,2,12],[32,3,32,4],[19,3,19,12],[43,3,43,12],[13,0,13,12],[23,3,23,8],[25,3,25,8],[29,3,29,8],[21,3,21,4],[27,3,27,8],[34,3,34,6],[36,3,37,12],[39,3,40,12],[15,2,15,3]]}
["3. Projekty badawcze",null,null,null,null,null,null,null,null,null,null,null,null,null,null,null,null,null,null,"POWRÓT"]
[]
["Znaczący udział w projekcie badawczym o wysokim poziomie innowacyjności, realizowanym przez uczelnię, w której student odbywa lub odbywał kształcenie, w tym udział w projekcie badawczym finansowanym w ramach konkursu ogólnopolskiego lub międzynarodowego\n\n"]
["Wyjaśnienie:"]
["We wniosku można wskazać wyłącznie:"]
["·        udział jako wykonawca, główny wykonawca lub kierownik projektu"]
["·        udział w badaniach statutowych uczelni, w której student odbywa lub odbywał kształcenie"]
["·        udział w projektach realizowanych przez uczelnię, w której student odbywa lub odbywał kształcenie, w ramach konkursów np. NCN, NCBiR"]
["Nie należy wskazywać:"]
["·        projektów realizowanych przez inną uczelnię lub jednostkę badawczą"]
["·        projektów własnych studenta prowadzonych w uczelni "]
["·        projektów realizowanych w ramach prac kół naukowych"]
[]
["Wykaz projektów naukowych realizowanych przez uczelnie znajduje się w bazie POL-on w zakładce „Projekty naukowe”. Wykaz ten ma charakter pomocniczy i  nie jest równoznaczny z wykazem „projektów badawczych o wysokim poziomie innowacyjności”, o których mowa w tej  kategorii. "]
[]
["Baza projektów:",null,"POL-on projekty naukowe"]
[]
["Oznaczenie projektu",null,null,null,"oznaczenie literowe we wniosku (osiągnięcia w danej kategorii powinny być oznaczone kolejnymi literami alfabetu)",null,null,null,null,null,null,null,null,{"$f":"IF(D18=\"\",\"\",\"v\")","v":""},{"$f":"IF(N18=\"v\",1,0)","v":0}]
[]
["Nazwa projektu",null,null,null,null,null,null,null,null,null,null,null,null,{"$f":"IF(D20=\"\",\"\",\"v\")","v":""},{"$f":"IF(N20=\"v\",1,0)","v":0}]
[]
["Okres trwania projektu",null,null,null,null,"Data rozpoczęcia realizacji",null,null,null,"Data zakończenia realizacji",null,null,null,{"$f":"IF(AND(P22=\"v\",Q22=\"v\"),\"v\",\"\")","v":""},{"$f":"IF(N22=\"v\",1,0)","v":0},{"$f":"IF(D22=\"\",\"\",\"v\")","v":""},{"$f":"IF(I22=\"\",\"\",\"v\")","v":""}]
[]
["Imiona i nazwisko kierownika",null,null,null,null,null,null,null,null,null,null,null,null,{"$f":"IF(D24=\"\",\"\",\"v\")","v":""},{"$f":"IF(N24=\"v\",1,0)","v":0}]
[]
["Numer projektu",null,null,null,null,null,null,null,null,null,null,null,null,{"$f":"IF(D26=\"\",\"\",\"v\")","v":""},{"$f":"IF(N26=\"v\",1,0)","v":0}]
[]
["Źródło finansowania projektu",null,null,null,null,null,null,null,null,"Należy wskazać instytucję finansującą oraz koszt projektu",null,null,null,{"$f":"IF(D28=\"\",\"\",\"v\")","v":""},{"$f":"IF(N28=\"v\",1,0)","v":0}]
[]
["Nazwa konkursu, w ramach którego",null,null,null,null,null,null,null,null,null,null,null,null,{"$f":"IF(D30=\"\",\"\",\"v\")","v":""},{"$f":"IF(N30=\"v\",1,0)","v":0}]
["finansowany jest projekt",null,null,"w przypadku badań statutowych uczelni należy wpisać \"badania statutowe\""]
[]
["Okres uczestnictwa studenta w projekcie",null,null,null,null,"Data rozpoczęcia uczestnictwa",null,null,null,"Data zakończenia uczestnictwa",null,{"$f":"_xlfn.DAYS(I33,D33)","v":0},"dni",{"$f":"IF(AND(P33=\"v\",Q33=\"v\"),\"v\",\"\")","v":""},{"$f":"IF(N33=\"v\",1,0)","v":0},{"$f":"IF(D33=\"\",\"\",\"v\")","v":""},{"$f":"IF(I33=\"\",\"\",\"v\")","v":""}]
[]
["Pełniona przez studenta rola w projekcie",null,null,null,null,null,null,null,null,null,null,null,null,{"$f":"IF(OR(D35=G50,D35=G51,D35=G52),\"v\",\"\")","v":""},{"$f":"IF(N35=\"v\",1,0)","v":0}]
[]
["Opis wykonywanych zadań",null,null,null,null,null,null,null,null,null,null,null,null,{"$f":"IF(D37=\"\",\"\",\"v\")","v":""},{"$f":"IF(N37=\"v\",1,0)","v":0}]
[]
[]
["Cel i efekty projektu",null,null,null,null,null,null,null,null,null,null,null,null,{"$f":"IF(D40=\"\",\"\",\"v\")","v":""},{"$f":"IF(N40=\"v\",1,0)","v":0}]
[]
[null,null,null,"Liczba referatów, publikacji, zastosowań praktycznych badań naukowych lub prac rozwojowych lub wdrożeń wyników działalności naukowej, \n"]
[null,null,null,"będących wynikiem udziału w projekcie)"]
["Uwagi (pole nieobowiązkowe)"]
[]
["Tekst poniżej do skopiowania do formularza wniosku (CTR-C)",null,null,null,null,null,null,{"$f":"TEXT(L52,\"0%\")","v":"0%"},{"$f":"IF(H46=\"100%\",\"\",\"uzupełnij wymagane pola\")","v":"uzupełnij wymagane pola"}]
[{"$f":"IF(D18=\"\",\"\",D18&\") \"&I57&\", (\"&I50&\" - \"&I51&\"), kierownik: \"&D24&\", numer: \"&D26&\", źródła finansowania: \"&D28&\", nazwa konkursu: \"&D30&\", pełniona rola: \"&I58&\" w okresie od \"&I52&\" do \"&I53&\" (ok. \"&L33&\" dni), opis zadań: \"&D37&\", cel i efekty: \"&D40&I55 )","v":""}]
[]
[]
[null,null,null,"x",null,null,"kierownik",null,{"$f":"TEXT(D22,\"mm.rrrr\")","v":"01.1900"},null,null,{"$f":"SUM(O18:O42)","v":0},11]
[null,null,null,null,null,null,"gł. wykonawca",null,{"$f":"TEXT(I22,\"mm.rrrr\")","v":"01.1900"}]
[null,null,null,null,null,null,"wykonawca",null,{"$f":"TEXT(D33,\"mm.rrrr\")","v":"01.1900"},null,null,{"$f":"L50/M50","v":0}]
[null,null,null,"a",null,null,null,null,{"$f":"TEXT(I33,\"mm.rrrr\")","v":"01.1900"}]
[null,null,null,"b"]
[null,null,null,"c",null,null,null,null,{"$f":"IF(D44=\"\",\"\",\", uwagi: \"&D44)","v":""}]
[null,null,null,"d"]
[null,null,null,"e",null,null,null,null,{"$f":"UPPER(D20)","v":""}]
[null,null,null,"f",null,null,null,null,{"$f":"UPPER(D35)","v":""}]
[null,null,null,"g"]
[null,null,null,"h"]
[null,null,null,"i"]
[null,null,null,"j"]
[null,null,null,"k"]
[null,null,null,"l"]
[null,null,null,"m"]
[null,null,null,"n"]
[null,null,null,"o"]
[null,null,null,"p"]
[null,null,null,"q"]
[null,null,null,"r"]
[null,null,null,"s"]
[null,null,null,"t"]
[null,null,null,"u"]
[null,null,null,"w"]
[null,null,null,"x"]
[null,null,null,"y"]
[null,null,null,"z"]
[]
[]
[]
[null,null,null," "]

{"sheet":"C.1.4. REFERATY","index":4,"n_rows":72,"n_cols":21,"rows_kept":72,"cut":false,"hidden":false,"merged":[[34,3,34,12],[31,3,31,11],[2,0,2,12],[10,0,10,12],[20,3,20,12],[26,3,26,4],[16,3,16,4],[18,3,18,4],[22,3,22,6],[24,3,24,12],[29,3,29,4],[12,2,12,3]]}
["4. Referaty na konferencjach",null,null,null,null,null,null,null,null,null,null,null,null,null,null,null,null,null,null,null,"POWRÓT"]
[]
["Autorstwo i wygłoszenie referatu naukowego dotyczącego badań naukowych o wysokim poziomie innowacyjności na ogólnopolskiej lub międzynarodowej konferencji naukowej o wysokim prestiżu zorganizowanej przez podmiot, o którym mowa w art. 7 ust. 1 ustawy, zagraniczną uczelnię lub zagraniczną instytucję naukową\n\n"]
["Wyjaśnienie:"]
["We wniosku można wskazać wyłącznie:"]
["·        referaty naukowe (inne formy np. postery/plakaty naukowe, komunikaty, krótkie wypowiedzi – nie są punktowane)"]
["·        referaty autorstwa studenta (współautorstwo referatów nie jest punktowane) i jednocześnie przez niego wygłoszone"]
["·        referaty na konferencjach organizowanych przez krajowe lub zagraniczne uczelnie, instytuty badawcze, instytuty naukowe PAN, międzynarodowe instytuty badawcze, etc."]
["Nie należy wskazywać referatów na konferencjach organizowanych wyłącznie przez koła naukowe, fundacje, etc."]
[]
["Wykaz krajowych konferencji naukowych wraz z zasięgiem i jednostką organizującą znajduje się bazie POL-on w zakładce „Wykaz zorganizowanych konferencji naukowych”. Wykaz ten ma charakter pomocniczy i nie jest równoznaczny z wykazem „ogólnopolskich lub międzynarodowych konferencji naukowych o wysokim prestiżu”, o których mowa w tej kategorii. "]
[]
["Baza konferencji:",null,"POL-on konferencje"]
[]
["Oznaczenie referatu",null,null,null,"oznaczenie literowe we wniosku (osiągnięcia w danej kategorii powinny być oznaczone kolejnymi literami alfabetu)",null,null,null,null,null,null,null,null,{"$f":"IF(D15=\"\",\"\",\"v\")","v":""},{"$f":"IF(N15=\"v\",1,0)","v":0}]
[]
["Data konferencji",null,null,null,null,"Data rozpoczęcia konferencji",null,null,null,"Data zakończenia konferencji",null,{"$f":"IF(I17=\"\",\"\",(1+(_xlfn.DAYS(I17,D17)))&\" dni\")","v":""},null,{"$f":"IF(AND(P17=\"v\",Q17=\"v\"),\"v\",\"\")","v":""},{"$f":"IF(N17=\"v\",1,0)","v":0},{"$f":"IF(D17=\"\",\"\",\"v\")","v":""},{"$f":"IF(I17=\"\",\"\",\"v\")","v":""}]
[]
["Miejsce konferencji",null,null,null,null,"Kraj",null,null,null,"Miejscowość",null,null,null,{"$f":"IF(AND(P19=\"v\",Q19=\"v\"),\"v\",\"\")","v":""},{"$f":"IF(N19=\"v\",1,0)","v":0},{"$f":"IF(D19=\"\",\"\",\"v\")","v":""},{"$f":"IF(I19=\"\",\"\",\"v\")","v":""}]
[]
["Nazwa konferencji",null,null,null,null,null,null,null,null,null,null,null,null,{"$f":"IF(D21=\"\",\"\",\"v\")","v":""},{"$f":"IF(N21=\"v\",1,0)","v":0}]
[]
["Zasięg konferencji",null,null,null,null,null,null,null,null,null,null,null,null,{"$f":"IF(OR(D23=G41,D23=G42,D23=G43),\"v\",\"\")","v":""},{"$f":"IF(N23=\"v\",1,0)","v":0}]
[]
["Tytuł referatu",null,null,null,null,null,null,null,null,null,null,null,null,{"$f":"IF(D25=\"\",\"\",\"v\")","v":""},{"$f":"IF(N25=\"v\",1,0)","v":0}]
[]
["Liczba prelegentów",null,null,null,null,"OGÓŁEM",null,"w tym ok.",null,"posiadających co najmniej stopień doktora",null,null,null,{"$f":"IF(AND(P27=\"v\",Q27=\"v\"),\"v\",\"\")","v":""},{"$f":"IF(N27=\"v\",1,0)","v":0},{"$f":"IF(D27=\"\",\"\",\"v\")","v":""},{"$f":"IF(I27=\"\",\"\",\"v\")","v":""}]
[null,null,null,"W przypadku trudności z ustaleniem liczby prelegentów, należy skontaktować się z organizatorem."]
[null,null,null,"Liczba prelegentów może być wartością szacunkową.",null,null,null,null,{"$f":"IF(D27<I27,\"Liczba prelegentów ze stopniem dr większa niż liczba wszystkich prelegentów?\",\"\")","v":""}]
["Liczba reprezentowanych uczelni",null,null,null,null,null,null,null,null,null,null,null,null,{"$f":"IF(D30=\"\",\"\",\"v\")","v":""},{"$f":"IF(N30=\"v\",1,0)","v":0}]
[null,null,null,"W przypadku trudności z ustaleniem liczby reprezentowanych uczelni, należy skontaktować się z organizatorem."]
["Nazwa organizatora",null,null,null,null,null,null,null,null,null,null,null,null,{"$f":"IF(D32=\"\",\"\",\"v\")","v":""},{"$f":"IF(N32=\"v\",1,0)","v":0}]
[null,null,null,"Należy wskazać wszystkich współorganizatorów konferencji, a  nie tylko organizatora głównego."]
[]
["Uwagi (pole nieobowiązkowe)"]
[]
["Tekst poniżej do skopiowania do formularza wniosku (CTR-C)",null,null,null,null,null,null,{"$f":"TEXT(L43,\"0%\")","v":"0%"},{"$f":"IF(H37=\"100%\",\"\",\"uzupełnij wymagane pola\")","v":"uzupełnij wymagane pola"}]
[{"$f":"IF(D15=\"\",\"\",D15&\") \"&I41&\" - \"&I42&I45&\", \"&D19&\", \"&I19&\", \"&I48&\", konferencja \"&I49&\", referat: \"&D25&\", liczba prelegentów: ok. \"&D27&\", w tym ok. \"&I27&\" ze stopniem dr (\"&I47&\"), liczba uczelni: \"&D30&\", organizator: \"&D32&I46)","v":""}]
[]
[]
[null,null,null,"x",null,null,"ogólnopolska",null,{"$f":"TEXT(D17,\"dd.mm.rrrr\")","v":"00.01.1900"},null,null,{"$f":"SUM(O15:O34)","v":0},9]
[null,null,null,null,null,null,"międzynarodowa krajowa",null,{"$f":"TEXT(I17,\"dd.mm.rrrr\")","v":"00.01.1900"}]
[null,null,null,null,null,null,"międzynarodowa zagraniczna",null,null,null,null,{"$f":"L41/M41","v":0}]
[null,null,null,"a"]
[null,null,null,"b",null,null,null,null,{"$f":"IF(L17>1,\" (\"&L17&\")\",\"\")","v":" ()"}]
[null,null,null,"c",null,null,null,null,{"$f":"IF(D35=\"\",\"\",\", uwagi: \"&D35)","v":""}]
[null,null,null,"d",null,null,null,null,{"$f":"IF(OR(D27=\"\",I27=\"\"),\"\",TEXT(I27/D27,\"0%\"))","v":""}]
[null,null,null,"e",null,null,null,null,{"$f":"UPPER(D21)","v":""}]
[null,null,null,"f",null,null,null,null,{"$f":"UPPER(D23)","v":""}]
[null,null,null,"g"]
[null,null,null,"h"]
[null,null,null,"i"]
[null,null,null,"j"]
[null,null,null,"k"]
[null,null,null,"l"]
[null,null,null,"m"]
[null,null,null,"n"]
[null,null,null,"o"]
[null,null,null,"p"]
[null,null,null,"q"]
[null,null,null,"r"]
[null,null,null,"s"]
[null,null,null,"t"]
[null,null,null,"u"]
[null,null,null,"w"]
[null,null,null,"x"]
[null,null,null,"y"]
[null,null,null,"z"]
[]
[]
[]
[null,null,null," "]

{"sheet":"C.1.5 NAGRODY","index":5,"n_rows":80,"n_cols":21,"rows_kept":80,"cut":false,"hidden":false,"merged":[[24,3,24,4],[27,3,27,12],[23,3,23,6],[23,8,23,12],[29,3,29,6],[37,3,37,4],[40,3,40,11],[42,3,42,12],[33,3,34,12],[31,3,31,4],[2,0,2,12],[20,3,20,12],[16,3,16,4],[18,3,18,4],[22,3,22,4],[22,8,22,11]]}
["5. Uzyskane nagrody naukowe",null,null,null,null,null,null,null,null,null,null,null,null,null,null,null,null,null,null,null,"POWRÓT"]
[]
["Uzyskanie nagrody indywidualnej lub znaczący udział w powstaniu osiągnięcia, za które uzyskano nagrodę zespołową w konkursie o wysokim prestiżu i o zasięgu międzynarodowym, w którym uczestniczyli studenci uczelni co najmniej z pięciu państw, z wyłączeniem konkursów organizowanych w ramach międzynarodowych konferencji naukowych.\n\n"]
[]
["Wyjaśnienie:"]
["We wniosku można wskazać wyłącznie:"]
["·        nagrody w konkursach o zasięgu międzynarodowym (konkurs musi być skierowany do studentów uczelni z różnych krajów, a międzynarodowy charakter musi wynikać z regulaminu konkursu) "]
["·        nagrody w klasyfikacji generalnej konkursu międzynarodowego, w tym nagrody w poszczególnych w kategoriach głównych (jeżeli regulamin przewiduje klasyfikację generalną dla danej kategorii) "]
["Nie należy wskazywać:"]
["·        nagród w poszczególnych etapach konkursu międzynarodowego (etap uczelniany, krajowy, regionalny) czy w konkurencjach cząstkowych konkursu"]
["·        nagród w konkursach zorganizowanych w ramach konferencji (np. konkurs na najlepszy poster konferencji)"]
["·        wyróżnień uzyskanych w konkursie (punktowane są tylko nagrody)"]
["·        konkursów, w których uczestniczyli studenci uczelni z mniej niż pięciu państw"]
[]
["Oznaczenie nagrody",null,null,null,"oznaczenie literowe we wniosku (osiągnięcia w danej kategorii powinny być oznaczone kolejnymi literami alfabetu)",null,null,null,null,null,null,null,null,{"$f":"IF(D15=\"\",\"\",\"v\")","v":""},{"$f":"IF(N15=\"v\",1,0)","v":0}]
[]
["Data uzyskania nagrody",null,null,null,null,"Data uzyskania nagrody (a nie data zawodów - można ją ew. podać w uwagach)",null,null,null,null,null,null,null,{"$f":"IF(D17=\"\",\"\",\"v\")","v":""},{"$f":"IF(N17=\"v\",1,0)","v":0}]
[]
["Miejsce uzyskania nagrody",null,null,null,null,"Kraj",null,null,null,"Miejscowość",null,null,null,{"$f":"IF(AND(P19=\"v\",Q19=\"v\"),\"v\",\"\")","v":""},{"$f":"IF(N19=\"v\",1,0)","v":0},{"$f":"IF(D19=\"\",\"\",\"v\")","v":""},{"$f":"IF(I19=\"\",\"\",\"v\")","v":""}]
[]
["Nazwa konkursu",null,null,null,null,null,null,null,null,null,null,null,null,{"$f":"IF(D21=\"\",\"\",\"v\")","v":""},{"$f":"IF(N21=\"v\",1,0)","v":0}]
[]
["Uzyskane miejsce",null,null,null,null,null,null,"miejsce dotyczy",null,null,null,null,null,{"$f":"IF(D23=\"\",\"\",\"v\")","v":""},{"$f":"IF(N23=\"v\",1,0)","v":0}]
[null,null,null,"W przypadku braku uzyskanego miejsca lub niemożności wskazania miejsca w konkursie należy wskazać liczbę 0 i opisać przyczynę w polu „uwagi”.",null,null,null,null,"Jeżeli konkurs ma jeden ranking i jednego zwycięzcę, należy wybrać „całego konkursu”. Jeżeli w konkursie zawody rozgrywają się w kilku odmiennych kategoriach (np. auta spalinowe, elektryczne, hybrydowe) należy wybrać  „w kategorii konkursu”. Jeżeli nagroda jest w jednej z wielu konkurencji cząstkowych (np. największe przyśpieszenie) osiągnięcia nie należy wskazywać, gdyż nie podlega punktacji.\n"]
["Liczba uczestników konkursu",null,null,null,null,"OGÓŁEM",null,"w tym ok.",null,"zespołów",null,null,null,{"$f":"IF(AND(P25=\"v\",Q25=\"v\"),\"v\",\"\")","v":""},{"$f":"IF(N25=\"v\",1,0)","v":0},{"$f":"IF(D25=\"\",\"\",\"v\")","v":""},{"$f":"IF(I25=\"\",\"\",\"v\")","v":""}]
[null,null,null,"W przypadku trudności z ustaleniem liczby uczestników/zespołów, należy skontaktować się z organizatorem."]
[null,null,null,"Liczba uczestników konkursu może być wartością szacunkową."]
["Forma uzyskanej nagrody",null,null,null,null,null,null,null,null,null,null,null,null,{"$f":"IF(D28=\"\",\"\",\"v\")","v":""},{"$f":"IF(N28=\"v\",1,0)","v":0}]
[null,null,null,"Należy podać formę nagrody (np. puchar za zajęcie 1 miejsca, srebrny medal, etc.), oraz ew. w jakiej kategorii (np. auta spalinowe, elektryczne)."]
["Rodzaj nagrody",null,null,null,null,null,null,null,null,null,null,null,null,{"$f":"IF(OR(D30=G49,D30=G50),\"v\",\"\")","v":""},0]
[null,null,null,null,null,null,null,{"$f":"IF(D32=\"\",\"\",IF(AND(D32<100,D30=G49),\"czy na pewno nagroda jest indywidualna, a wkład studenta mniejszy niż 100%?\",\"\"))","v":""}]
["Wkład w uzyskanie nagrody",null,null,null,null,"%",null,{"$f":"IF(AND(D32=100,D30=G50),\"czy na pewno nagroda jest zespołowa, a wkład studenta 100%?\",\"\")","v":""},null,null,null,null,null,{"$f":"IF(D32=\"\",\"\",\"v\")","v":""},0]
[null,null,null,{"$f":"IF(D32=\"\",\"\",IF(D32<100,\"Gdy wkład jest mniejszy niż 100% należy wypełnić pole poniżej\",\"\"))","v":""}]
["Imiona i nazwiska członków zespołu",null,null,null,null,null,null,null,null,null,null,null,null,{"$f":"IF(OR(P34=\"v\",Q34=\"v\"),\"v\",\"\")","v":""},0,{"$f":"IF(D34=\"\",(IF(D32=100,\"v\",\"\")),\"\")","v":""},{"$f":"IF(NOT(D34=\"\"),(IF(NOT(D32=100),\"v\",\"\")),\"\")","v":""}]
["(wraz z procentowym wkładem)"]
[null,null,null,"Wkład procentowy wszystkich członków zespołu musi sumować się do 100%.  \n"]
[null,null,null,"Należy podać w formacie „imię, nazwisko – procent” np. „Jan Kowalski – 25%”. "]
["Liczba reprezentowanych państw",null,null,null,null,null,null,"liczba uczelni",null,null,null,null,null,{"$f":"IF(AND(P38=\"v\",Q38=\"v\"),\"v\",\"\")","v":""},{"$f":"IF(N38=\"v\",1,0)","v":0},{"$f":"IF(D38=\"\",\"\",\"v\")","v":""},{"$f":"IF(I38=\"\",\"\",\"v\")","v":""}]
[null,null,null,"W przypadku trudności z ustaleniem liczby państw/uczelni, należy skontaktować się z organizatorem."]
[null,null,null,null,null,null,null,null,"Liczba reprezentowanych uczelni może być wartością szacunkową."]
["Nazwa organizatora",null,null,null,null,null,null,null,null,null,null,null,null,{"$f":"IF(D41=\"\",\"\",\"v\")","v":""},{"$f":"IF(N41=\"v\",1,0)","v":0}]
[null,null,null,"Należy wskazać wszystkich współorganizatorów konkursu, a  nie tylko organizatora głównego."]
["Uwagi (pole nieobowiązkowe)"]
[null,null,null,{"$f":"IF(D23=\"\",\"\",IF(D23=0,\"Należy wyjaśnić w polu powyżej przyczyny niemożności wskazania miejsca w konkursie\",\"\"))","v":""}]
["Tekst poniżej do skopiowania do formularza wniosku (CTR-C)",null,null,null,null,null,null,{"$f":"TEXT(L51,\"0%\")","v":"0%"},{"$f":"IF(H45=\"100%\",\"\",\"uzupełnij wymagane pola\")","v":"uzupełnij wymagane pola"}]
[{"$f":"IF(D15=\"\",\"\",D15&\") \"&I52&\", \"&D19&\", \"&I19&\", \"&I57&\", miejsce: \"&I49&\" (\"&I23&\"), liczba uczestników: \"&D25&\", w tym \"&I25&\" zespołów, forma: \"&D28&\", rodzaj: \"&I55&\", wkład: \"&D32&\"%, \"&I51&\", liczba państw: \"&D38&\", liczba uczelni: \"&I38&\", organizator: \"&D41&I54)","v":""}]
[]
[]
[null,null,null,"x","klasyfikacja generalna całego konkursu",null,"indywidualna",null,{"$f":"IF(D23=0,\"nieokreślone\",D23)","v":"nieokreślone"},null,null,{"$f":"SUM(O15:O41)","v":0},12]
[null,null,null,null,"klasyfikacja w kategorii konkursu",null,"zespołowa"]
[null,null,null,null,null,null,null,null,{"$f":"IF(D34=\"\",\"brak zespołu\",\"członkowie zespołu: \"&D34)","v":"brak zespołu"},null,null,{"$f":"L49/M49","v":0}]
[null,null,null,"a",null,null,null,null,{"$f":"TEXT(D17,\"dd.mm.rrrr\")","v":"00.01.1900"}]
[null,null,null,"b"]
[null,null,null,"c",null,null,null,null,{"$f":"IF(D43=\"\",\"\",\", uwagi: \"&D43)","v":""}]
[null,null,null,"d",null,null,null,null,{"$f":"UPPER(D30)","v":""}]
[null,null,null,"e"]
[null,null,null,"f",null,null,null,null,{"$f":"UPPER(D21)","v":""}]
[null,null,null,"g"]
[null,null,null,"h"]
[null,null,null,"i"]
[null,null,null,"j"]
[null,null,null,"k"]
[null,null,null,"l"]
[null,null,null,"m"]
[null,null,null,"n"]
[null,null,null,"o"]
[null,null,null,"p"]
[null,null,null,"q"]
[null,null,null,"r"]
[null,null,null,"s"]
[null,null,null,"t"]
[null,null,null,"u"]
[null,null,null,"w"]
[null,null,null,"x"]
[null,null,null,"y"]
[null,null,null,"z"]
[]
[]
[]
[null,null,null," "]

{"sheet":"C.2.1. UTWORY MUZ","index":6,"n_rows":68,"n_cols":21,"rows_kept":68,"cut":false,"hidden":false,"merged":[[2,0,2,12],[14,3,14,12],[22,3,22,4],[24,3,25,12],[30,3,30,12],[8,3,8,4],[10,3,10,4],[12,3,12,10],[18,3,18,10],[20,3,20,4],[16,3,16,12]]}
["1. Utwory muzyczne",null,null,null,null,null,null,null,null,null,null,null,null,null,null,null,null,null,null,null,"POWRÓT"]
[]
["Autorstwo lub wykonanie utworu muzycznego lub innej formy muzycznej zaprezentowanych na przeglądzie, festiwalu lub koncercie o wysokim prestiżu i o co najmniej krajowym zasięgu.\n"]
[]
["Oznaczenie dzieła",null,null,null,"oznaczenie literowe we wniosku (osiągnięcia w danej kategorii powinny być oznaczone kolejnymi literami alfabetu)",null,null,null,null,null,null,null,null,{"$f":"IF(D5=\"\",\"\",\"v\")","v":""},{"$f":"IF(N5=\"v\",1,0)","v":0}]
[]
["Autorstwo/wykonanie",null,null,null," autorstwo",null,null,null," wykonanie",null,{"$f":"IF(AND(D7=\"\",H7=\"\"),\"Proszę wybrać\",\"\")","v":"Proszę wybrać"},null,null,{"$f":"IF(OR(D7=\"x\",H7=\"x\"),\"v\",\"\")","v":""},{"$f":"IF(N7=\"v\",1,0)","v":0}]
[null,null,null,"Możliwy jest jednoczesny status autora i wykonawcy"]
["Data prezentacji",null,null,null,null,"Data prezentacji na danym przeglądzie, festiwalu lub koncercie",null,null,null,null,null,null,null,{"$f":"IF(D9=\"\",\"\",\"v\")","v":""},{"$f":"IF(N9=\"v\",1,0)","v":0}]
[]
["Miejsce prezentacji",null,null,null,null,"Kraj",null,null,null,"Miejscowość",null,null,null,{"$f":"IF(AND(P11=\"v\",Q11=\"v\"),\"v\",\"\")","v":""},{"$f":"IF(N11=\"v\",1,0)","v":0},{"$f":"IF(D11=\"\",\"\",\"v\")","v":""},{"$f":"IF(I11=\"\",\"\",\"v\")","v":""}]
[]
["Rodzaj utworu lub innej formy muz.",null,null,null,null,null,null,null,null,null,null,null,null,{"$f":"IF(D13=\"\",\"\",\"v\")","v":""},0]
[]
["Tytuł utworu lub innej formy muz.",null,null,null,null,null,null,null,null,null,null,null,null,{"$f":"IF(D15=\"\",\"\",\"v\")","v":""},{"$f":"IF(N15=\"v\",1,0)","v":0}]
[]
["Nazwa przeglądu/festiwalu/koncertu",null,null,null,null,null,null,null,null,null,null,null,null,{"$f":"IF(D17=\"\",\"\",\"v\")","v":""},{"$f":"IF(N17=\"v\",1,0)","v":0}]
[]
["Nazwa organizatora prezentacji",null,null,null,null,null,null,null,null,null,null,null,null,{"$f":"IF(D19=\"\",\"\",\"v\")","v":""},{"$f":"IF(N19=\"v\",1,0)","v":0}]
[]
["Szacunkowa liczba widzów",null,null,null,null,null,null,null,null,null,null,null,null,{"$f":"IF(D21=\"\",\"\",\"v\")","v":""},{"$f":"IF(N21=\"v\",1,0)","v":0}]
[null,null,null,"W przypadku trudności z ustaleniem liczby widzów, należy skontaktować się z organizatorem prezentacji."]
["Wkład autorski studenta",null,null,null,null,"%",null,null,null,null,null,null,null,{"$f":"IF(D23=\"\",\"\",\"v\")","v":""},0]
[null,null,null,{"$f":"IF(D25=\"\",IF(D23=\"\",\"\",IF(D23<100,\"Gdy wkład autorski jest mniejszy niż 100% należy wypełnić pole poniżej\",\"\")),\"\")","v":""}]
["Imiona i nazwiska współautorów",null,null,null,null,null,null,null,null,null,null,null,null,{"$f":"IF(OR(P25=\"v\",Q25=\"v\"),\"v\",\"\")","v":""},0,{"$f":"IF(D25=\"\",(IF(D23=100,\"v\",\"\")),\"\")","v":""},{"$f":"IF(NOT(D25=\"\"),(IF(NOT(D23=100),\"v\",\"\")),\"\")","v":""}]
["(wraz z procentowym wkładem)"]
[null,null,null,{"$f":"IF(AND(D23=100,NOT(D25=\"\")),\"W przypadku 100% wkładu autorskiego, powyższe pole należy pozostawić puste.\",\"\")","v":""}]
[null,null,null,"Wkład autorski wszystkich współautorów musi sumować się do 100%.  \n"]
[null,null,null,"Należy podać w formacie „imię, nazwisko – procent” np. „Jan Kowalski – 25%”. "]
[]
["Uwagi (pole nieobowiązkowe)"]
[]
["Tekst poniżej do skopiowania do formularza wniosku (CTRL-C)",null,null,null,null,null,null,{"$f":"TEXT(L39,\"0%\")","v":"0%"},{"$f":"IF(H33=\"100%\",\"\",\"uzupełnij wymagane pola\")","v":"uzupełnij wymagane pola"}]
[{"$f":"IF(D5=\"\",\"\",D5&\") \"&I37&\", \"&D11&\", \"&I11&\", \"&D13&\", \"&I43&\", miejsce prezentacji: \"&D17&\", organizator: \"&D19&\", liczba widzów ok. \"&D21&\", \"&I46&\", wkład autorski: \"&D23&\"%, \"&I39&I42)","v":""}]
[]
[]
[null,null,null,"x",null,null,null,null,{"$f":"TEXT(D9,\"dd.mm.rrrr\")","v":"00.01.1900"},null,null,{"$f":"SUM(O5:O30)","v":0},11]
[]
[null,null,null,null,null,null,null,null,{"$f":"IF(D25=\"\",\"brak współautorów\",\"współautorstwo: \"&D25)","v":"brak współautorów"},null,null,{"$f":"L37/M37","v":0}]
[null,null,null,"a"]
[null,null,null,"b"]
[null,null,null,"c",null,null,null,null,{"$f":"IF(D31=\"\",\"\",\", uwagi: \"&D31)","v":""}]
[null,null,null,"d",null,null,null,null,{"$f":"UPPER(D15)","v":""}]
[null,null,null,"e",null,null,null,null,{"$f":"IF(D7=\"x\",\"AUTOR\",\"\")","v":""}]
[null,null,null,"f",null,null,null,null,{"$f":"IF(H7=\"x\",\"WYKONAWCA\",\"\")","v":""}]
[null,null,null,"g",null,null,null,null,{"$f":"IF(AND(I44=\"autor\",I45=\"wykonawca\"),\"AUTOR i WYKONAWCA\",I44&I45)","v":""}]
[null,null,null,"h"]
[null,null,null,"i"]
[null,null,null,"j"]
[null,null,null,"k"]
[null,null,null,"l"]
[null,null,null,"m"]
[null,null,null,"n"]
[null,null,null,"o"]
[null,null,null,"p"]
[null,null,null,"q"]
[null,null,null,"r"]
[null,null,null,"s"]
[null,null,null,"t"]
[null,null,null,"u"]
[null,null,null,"w"]
[null,null,null,"x"]
[null,null,null,"y"]
[null,null,null,"z"]
[]
[]
[]
[null,null,null," "]

{"sheet":"C.2.2. PŁYTY MUZ.","index":7,"n_rows":68,"n_cols":22,"rows_kept":68,"cut":false,"hidden":false,"merged":[[18,3,18,10],[20,3,20,4],[22,3,22,4],[24,3,25,12],[30,3,30,12],[16,3,16,4],[2,0,2,12],[8,3,8,4],[10,3,10,4],[12,3,12,10],[14,3,14,12]]}
["2. Płyty muzyczne",null,null,null,null,null,null,null,null,null,null,null,null,null,null,null,null,null,null,null,null,"POWRÓT"]
[]
["Autorstwo lub znaczący wkład autorski utworów muzycznych nagranych na płycie wydanej przez firmę producencką o wysokim prestiżu\n\n"]
[]
["Oznaczenie dzieła",null,null,null,"oznaczenie literowe we wniosku (osiągnięcia w danej kategorii powinny być oznaczone kolejnymi literami alfabetu)",null,null,null,null,null,null,null,null,{"$f":"IF(D5=\"\",\"\",\"v\")","v":""},{"$f":"IF(N5=\"v\",1,0)","v":0}]
[]
["Autorstwo/wykonanie",null,null,null," autorstwo",null,null,null," wykonanie",null,{"$f":"IF(AND(D7=\"\",H7=\"\"),\"Proszę wybrać\",\"\")","v":"Proszę wybrać"},null,null,{"$f":"IF(OR(D7=\"x\",H7=\"x\"),\"v\",\"\")","v":""},{"$f":"IF(N7=\"v\",1,0)","v":0}]
[null,null,null,"Możliwy jest jednoczesny status autora i wykonawcy"]
["Data wydania płyty",null,null,null,null,null,null,null,null,null,null,null,null,{"$f":"IF(D9=\"\",\"\",\"v\")","v":""},{"$f":"IF(N9=\"v\",1,0)","v":0}]
[]
["Miejsce wydania",null,null,null,null,"Kraj siedziby wydawcy",null,null,null,"Miejscowość siedziby wydawcy",null,null,null,{"$f":"IF(AND(P11=\"v\",Q11=\"v\"),\"v\",\"\")","v":""},{"$f":"IF(N11=\"v\",1,0)","v":0},{"$f":"IF(D11=\"\",\"\",\"v\")","v":""},{"$f":"IF(I11=\"\",\"\",\"v\")","v":""}]
[]
["Imiona i nazwisko/nazwa wykonawcy",null,null,null,null,null,null,null,null,null,null,null,null,{"$f":"IF(D13=\"\",\"\",\"v\")","v":""},0]
[]
["Tytuł płyty",null,null,null,null,null,null,null,null,null,null,null,null,{"$f":"IF(D15=\"\",\"\",\"v\")","v":""},{"$f":"IF(N15=\"v\",1,0)","v":0}]
[]
["Liczba utworów",null,null,null,null,null,null,null,null,null,null,null,null,{"$f":"IF(D17=\"\",\"\",\"v\")","v":""},{"$f":"IF(N17=\"v\",1,0)","v":0}]
[]
["Nazwa firmy producenckiej",null,null,null,null,null,null,null,null,null,null,null,null,{"$f":"IF(D19=\"\",\"\",\"v\")","v":""},{"$f":"IF(N19=\"v\",1,0)","v":0}]
[]
["Nakład",null,null,null,null,null,null,null,null,null,null,null,null,{"$f":"IF(D21=\"\",\"\",\"v\")","v":""},{"$f":"IF(N21=\"v\",1,0)","v":0}]
[null,null,null,"W przypadku trudności z ustaleniem nakładu, należy skontaktować się z wydawcą płyty."]
["Wkład autorski studenta",null,null,null,null,"%",null,null,null,null,null,null,null,{"$f":"IF(D23=\"\",\"\",\"v\")","v":""},0]
[null,null,null,{"$f":"IF(D25=\"\",IF(D23=\"\",\"\",IF(D23<100,\"Gdy wkład autorski jest mniejszy niż 100% należy wypełnić pole poniżej\",\"\")),\"\")","v":""}]
["Imiona i nazwiska współautorów",null,null,null,null,null,null,null,null,null,null,null,null,{"$f":"IF(OR(P25=\"v\",Q25=\"v\"),\"v\",\"\")","v":""},0,{"$f":"IF(D25=\"\",(IF(D23=100,\"v\",\"\")),\"\")","v":""},{"$f":"IF(NOT(D25=\"\"),(IF(NOT(D23=100),\"v\",\"\")),\"\")","v":""}]
["(wraz z procentowym wkładem)"]
[null,null,null,{"$f":"IF(AND(D23=100,NOT(D25=\"\")),\"W przypadku 100% wkładu autorskiego, powyższe pole należy pozostawić puste.\",\"\")","v":""}]
[null,null,null,"Wkład autorski wszystkich współautorów musi sumować się do 100%.  \n"]
[null,null,null,"Należy podać w formacie „imię, nazwisko – procent” np. „Jan Kowalski – 25%”. "]
[]
["Uwagi (pole nieobowiązkowe)"]
[]
["Tekst poniżej do skopiowania do formularza wniosku (CTRL-C)",null,null,null,null,null,null,{"$f":"TEXT(L39,\"0%\")","v":"0%"},{"$f":"IF(H33=\"100%\",\"\",\"uzupełnij wymagane pola\")","v":"uzupełnij wymagane pola"}]
[{"$f":"IF(D5=\"\",\"\",D5&\") \"&I37&\", \"&D11&\", \"&I11&\", \"&D13&\", \"&I43&\", liczba utworów: \"&D17&\", wydawca płyty: \"&D19&\", nakład ok. \"&D21&\", \"&I46&\", wkład autorski: \"&D23&\"%, \"&I39&I42)","v":""}]
[]
[]
[null,null,null,"x",null,null,null,null,{"$f":"TEXT(D9,\"dd.mm.rrrr\")","v":"00.01.1900"},null,null,{"$f":"SUM(O5:O30)","v":0},11]
[]
[null,null,null,null,null,null,null,null,{"$f":"IF(D25=\"\",\"brak współautorów\",\"współautorstwo: \"&D25)","v":"brak współautorów"},null,null,{"$f":"L37/M37","v":0}]
[null,null,null,"a"]
[null,null,null,"b"]
[null,null,null,"c",null,null,null,null,{"$f":"IF(D31=\"\",\"\",\", uwagi: \"&D31)","v":""}]
[null,null,null,"d",null,null,null,null,{"$f":"UPPER(D15)","v":""}]
[null,null,null,"e",null,null,null,null,{"$f":"IF(D7=\"x\",\"AUTOR\",\"\")","v":""}]
[null,null,null,"f",null,null,null,null,{"$f":"IF(H7=\"x\",\"WYKONAWCA\",\"\")","v":""}]
[null,null,null,"g",null,null,null,null,{"$f":"IF(AND(I44=\"autor\",I45=\"wykonawca\"),\"AUTOR i WYKONAWCA\",I44&I45)","v":""}]
[null,null,null,"h"]
[null,null,null,"i"]
[null,null,null,"j"]
[null,null,null,"k"]
[null,null,null,"l"]
[null,null,null,"m"]
[null,null,null,"n"]
[null,null,null,"o"]
[null,null,null,"p"]
[null,null,null,"q"]
[null,null,null,"r"]
[null,null,null,"s"]
[null,null,null,"t"]
[null,null,null,"u"]
[null,null,null,"w"]
[null,null,null,"x"]
[null,null,null,"y"]
[null,null,null,"z"]
[]
[]
[]
[null,null,null," "]

{"sheet":"C.2.3. UTW. FILMOWE","index":8,"n_rows":66,"n_cols":22,"rows_kept":66,"cut":false,"hidden":false,"merged":[[2,0,2,12],[8,3,8,4],[10,3,10,4],[12,3,12,10],[14,3,14,12],[18,3,18,4],[20,3,20,4],[22,3,23,12],[28,3,28,12],[16,3,16,4],[20,8,20,11],[16,8,16,11]]}
["3. Utwory audiowizualne, w tym filmowe",null,null,null,null,null,null,null,null,null,null,null,null,null,null,null,null,null,null,null,null,"POWRÓT"]
[]
["Znaczący udział w powstaniu utworu audiowizualnego, w tym filmowego, zaprezentowanego na przeglądzie lub festiwalu o wysokim prestiżu i o co najmniej krajowym zasięgu lub w obiegu kinowym lub telewizyjnym, w tym reżyseria, montaż, autorstwo scenografii lub zdjęć, odegranie pierwszo- lub drugoplanowej roli\n\n"]
[]
["Oznaczenie dzieła",null,null,null,"oznaczenie literowe we wniosku (osiągnięcia w danej kategorii powinny być oznaczone kolejnymi literami alfabetu)",null,null,null,null,null,null,null,null,{"$f":"IF(D5=\"\",\"\",\"v\")","v":""},{"$f":"IF(N5=\"v\",1,0)","v":0}]
[]
["Autorstwo/wykonanie",null,null,null," autorstwo",null,null,null," wykonanie",null,{"$f":"IF(AND(D7=\"\",H7=\"\"),\"Proszę wybrać\",\"\")","v":"Proszę wybrać"},null,null,{"$f":"IF(OR(D7=\"x\",H7=\"x\"),\"v\",\"\")","v":""},{"$f":"IF(N7=\"v\",1,0)","v":0}]
[null,null,null,"Możliwy jest jednoczesny status autora i wykonawcy"]
["Data prezentacji",null,null,null,null,"Data prezentacji na danym przeglądzie lub festiwalu; data premiery w obiegu telewizyjnym/kinowym",null,null,null,null,null,null,null,{"$f":"IF(D9=\"\",\"\",\"v\")","v":""},{"$f":"IF(N9=\"v\",1,0)","v":0}]
[]
["Miejsce prezentacji",null,null,null,null,"Kraj siedziby wydawcy",null,null,null,"Miejscowość siedziby wydawcy",null,null,null,{"$f":"IF(AND(P11=\"v\",Q11=\"v\"),\"v\",\"\")","v":""},{"$f":"IF(N11=\"v\",1,0)","v":0},{"$f":"IF(D11=\"\",\"\",\"v\")","v":""},{"$f":"IF(I11=\"\",\"\",\"v\")","v":""}]
[]
["Rodzaj utworu",null,null,null,null,null,null,null,null,null,null,null,null,{"$f":"IF(D13=\"\",\"\",\"v\")","v":""},0]
[null,null,null,"np. film fabularny, film krótkometrażowy, etc."]
["Tytuł utworu",null,null,null,null,null,null,null,null,null,null,null,null,{"$f":"IF(D15=\"\",\"\",\"v\")","v":""},{"$f":"IF(N15=\"v\",1,0)","v":0}]
[]
["Miejsce prezentacji",null,null,null,null,null,null,null,null,null,null,null,null,{"$f":"IF(AND(P17=\"v\",Q17=\"v\"),\"v\",\"\")","v":""},{"$f":"IF(N17=\"v\",1,0)","v":0},{"$f":"IF(OR(D17=E35,D17=E36,D17=E37,D17=E38),\"v\",\"\")","v":""},{"$f":"IF(I17=\"\",\"\",\"v\")","v":""}]
[null,null,null,null,null,null,null,null,"Nazwa miejsca prezentacji (kina, tv, przeglądu, festiwalu)"]
["Szacunkowa liczba widzów",null,null,null,null,null,null,null,null,null,null,null,null,{"$f":"IF(D19=\"\",\"\",\"v\")","v":""},{"$f":"IF(N19=\"v\",1,0)","v":0}]
[null,null,null,"W przypadku trudności z ustaleniem liczby widzów, należy skontaktować się z organizatorem prezentacji."]
["Wkład autorski studenta",null,null,null,null,"%",null,null,null,null,null,null,null,{"$f":"IF(AND(P21=\"v\",Q21=\"v\"),\"v\",\"\")","v":""},{"$f":"IF(N21=\"v\",1,0)","v":0},{"$f":"IF(D21=\"\",\"\",\"v\")","v":""},{"$f":"IF(OR(I21=G35,I21=G36,I21=G37,I21=G38,I21=G39,I21=G40),\"v\",\"\")","v":""}]
[null,null,null,{"$f":"IF(D23=\"\",IF(D21=\"\",\"\",IF(D21<100,\"Gdy wkład autorski jest mniejszy niż 100% należy wypełnić pole poniżej\",\"\")),\"\")","v":""},null,null,null,null,"Autorstwo/wykonanie dotyczy"]
["Imiona i nazwiska współautorów",null,null,null,null,null,null,null,null,null,null,null,null,{"$f":"IF(OR(P23=\"v\",Q23=\"v\"),\"v\",\"\")","v":""},0,{"$f":"IF(D23=\"\",(IF(D21=100,\"v\",\"\")),\"\")","v":""},{"$f":"IF(NOT(D23=\"\"),(IF(NOT(D21=100),\"v\",\"\")),\"\")","v":""}]
["(wraz z procentowym wkładem)"]
[null,null,null,{"$f":"IF(AND(D21=100,NOT(D23=\"\")),\"W przypadku 100% wkładu autorskiego, powyższe pole należy pozostawić puste.\",\"\")","v":""}]
[null,null,null,"Wkład autorski wszystkich współautorów musi sumować się do 100%.  \n"]
[null,null,null,"Należy podać w formacie „imię, nazwisko – procent” np. „Jan Kowalski – 25%”. "]
[]
["Uwagi (pole nieobowiązkowe)"]
[]
["Tekst poniżej do skopiowania do formularza wniosku (CTRL-C)",null,null,null,null,null,null,{"$f":"TEXT(L37,\"0%\")","v":"0%"},{"$f":"IF(H31=\"100%\",\"\",\"uzupełnij wymagane pola\")","v":"uzupełnij wymagane pola"}]
[{"$f":"IF(D5=\"\",\"\",D5&\") \"&I35&\", \"&D11&\", \"&I11&\", \"&D13&\", \"&I41&\", miejsce prezentacji: \"&D17&\" (\"&I17&\"), liczba widzów ok. \"&D19&\", \"&I44&\" (\"&I21&\"), wkład autorski: \"&D21&\"%, \"&I37&I40)","v":""}]
[]
[]
[null,null,null,"x","kino",null,"reżyseria",null,{"$f":"TEXT(D9,\"dd.mm.rrrr\")","v":"00.01.1900"},null,null,{"$f":"SUM(O5:O28)","v":0},10]
[null,null,null,null,"telewizja",null,"montaż"]
[null,null,null,null,"przegląd ",null,"scenografia",null,{"$f":"IF(D23=\"\",\"brak współautorów\",\"współautorstwo: \"&D23)","v":"brak współautorów"},null,null,{"$f":"L35/M35","v":0}]
[null,null,null,"a","festiwal",null,"zdjęcia"]
[null,null,null,"b",null,null,"rola pierwszoplanowa"]
[null,null,null,"c",null,null,"rola drugoplanowa",null,{"$f":"IF(D29=\"\",\"\",\", uwagi: \"&D29)","v":""}]
[null,null,null,"d",null,null,null,null,{"$f":"UPPER(D15)","v":""}]
[null,null,null,"e",null,null,null,null,{"$f":"IF(D7=\"x\",\"AUTOR\",\"\")","v":""}]
[null,null,null,"f",null,null,null,null,{"$f":"IF(H7=\"x\",\"WYKONAWCA\",\"\")","v":""}]
[null,null,null,"g",null,null,null,null,{"$f":"IF(AND(I42=\"autor\",I43=\"wykonawca\"),\"AUTOR i WYKONAWCA\",I42&I43)","v":""}]
[null,null,null,"h"]
[null,null,null,"i"]
[null,null,null,"j"]
[null,null,null,"k"]
[null,null,null,"l"]
[null,null,null,"m"]
[null,null,null,"n"]
[null,null,null,"o"]
[null,null,null,"p"]
[null,null,null,"q"]
[null,null,null,"r"]
[null,null,null,"s"]
[null,null,null,"t"]
[null,null,null,"u"]
[null,null,null,"w"]
[null,null,null,"x"]
[null,null,null,"y"]
[null,null,null,"z"]
[]
[]
[]
[null,null,null," "]

{"sheet":"C.2.4. SPEKTAKLE","index":9,"n_rows":66,"n_cols":22,"rows_kept":66,"cut":false,"hidden":false,"merged":[[16,3,16,4],[16,8,16,11],[2,0,2,12],[8,3,8,4],[10,3,10,4],[12,3,12,10],[14,3,14,12],[18,3,18,4],[20,3,20,4],[20,8,20,11],[22,3,23,12],[28,3,28,12]]}
["4. Spektakle teatralne, operowe, operetkowe, baletowe lub musicalowe",null,null,null,null,null,null,null,null,null,null,null,null,null,null,null,null,null,null,null,null,"POWRÓT"]
[]
["Znaczący udział w powstaniu spektaklu teatralnego, operowego, operetkowego, baletowego lub musicalowego, zaprezentowanego na przeglądzie lub festiwalu o wysokim prestiżu i o co najmniej krajowym zasięgu lub w obiegu telewizyjnym, w tym reżyseria, autorstwo scenografii, odegranie pierwszo- lub drugoplanowej roli\n\n\n"]
[]
["Oznaczenie dzieła",null,null,null,"oznaczenie literowe we wniosku (osiągnięcia w danej kategorii powinny być oznaczone kolejnymi literami alfabetu)",null,null,null,null,null,null,null,null,{"$f":"IF(D5=\"\",\"\",\"v\")","v":""},{"$f":"IF(N5=\"v\",1,0)","v":0}]
[]
["Autorstwo/wykonanie",null,null,null," autorstwo",null,null,null," wykonanie",null,{"$f":"IF(AND(D7=\"\",H7=\"\"),\"Proszę wybrać\",\"\")","v":"Proszę wybrać"},null,null,{"$f":"IF(OR(D7=\"x\",H7=\"x\"),\"v\",\"\")","v":""},{"$f":"IF(N7=\"v\",1,0)","v":0}]
[null,null,null,"Możliwy jest jednoczesny status autora i wykonawcy"]
["Data prezentacji",null,null,null,null,"Data prezentacji na danym przeglądzie lub festiwalu; data premiery w obiegu telewizyjnym",null,null,null,null,null,null,null,{"$f":"IF(D9=\"\",\"\",\"v\")","v":""},{"$f":"IF(N9=\"v\",1,0)","v":0}]
[]
["Miejsce prezentacji",null,null,null,null,"Kraj siedziby wydawcy",null,null,null,"Miejscowość siedziby wydawcy",null,null,null,{"$f":"IF(AND(P11=\"v\",Q11=\"v\"),\"v\",\"\")","v":""},{"$f":"IF(N11=\"v\",1,0)","v":0},{"$f":"IF(D11=\"\",\"\",\"v\")","v":""},{"$f":"IF(I11=\"\",\"\",\"v\")","v":""}]
[]
["Rodzaj spektaklu",null,null,null,null,null,null,null,null,null,null,null,null,{"$f":"IF(D13=\"\",\"\",\"v\")","v":""},0]
[null,null,null,"np. operetka, musical, etc."]
["Tytuł spektaklu",null,null,null,null,null,null,null,null,null,null,null,null,{"$f":"IF(D15=\"\",\"\",\"v\")","v":""},{"$f":"IF(N15=\"v\",1,0)","v":0}]
[]
["Miejsce prezentacji",null,null,null,null,null,null,null,null,null,null,null,null,{"$f":"IF(AND(P17=\"v\",Q17=\"v\"),\"v\",\"\")","v":""},{"$f":"IF(N17=\"v\",1,0)","v":0},{"$f":"IF(OR(D17=E35,D17=E36,D17=E37,D17=E38,D17=E39),\"v\",\"\")","v":""},{"$f":"IF(I17=\"\",\"\",\"v\")","v":""}]
[null,null,null,null,null,null,null,null,"Nazwa miejsca prezentacji (teatru, opery, tv, przeglądu, festiwalu)"]
["Szacunkowa liczba widzów",null,null,null,null,null,null,null,null,null,null,null,null,{"$f":"IF(D19=\"\",\"\",\"v\")","v":""},{"$f":"IF(N19=\"v\",1,0)","v":0}]
[null,null,null,"W przypadku trudności z ustaleniem liczby widzów, należy skontaktować się z organizatorem prezentacji."]
["Wkład autorski studenta",null,null,null,null,"%",null,null,null,null,null,null,null,{"$f":"IF(AND(P21=\"v\",Q21=\"v\"),\"v\",\"\")","v":""},{"$f":"IF(N21=\"v\",1,0)","v":0},{"$f":"IF(D21=\"\",\"\",\"v\")","v":""},{"$f":"IF(OR(I21=G35,I21=G36,I21=G37,I21=G38),\"v\",\"\")","v":""}]
[null,null,null,{"$f":"IF(D23=\"\",IF(D21=\"\",\"\",IF(D21<100,\"Gdy wkład autorski jest mniejszy niż 100% należy wypełnić pole poniżej\",\"\")),\"\")","v":""},null,null,null,null,"Autorstwo/wykonanie dotyczy"]
["Imiona i nazwiska współautorów",null,null,null,null,null,null,null,null,null,null,null,null,{"$f":"IF(OR(P23=\"v\",Q23=\"v\"),\"v\",\"\")","v":""},0,{"$f":"IF(D23=\"\",(IF(D21=100,\"v\",\"\")),\"\")","v":""},{"$f":"IF(NOT(D23=\"\"),(IF(NOT(D21=100),\"v\",\"\")),\"\")","v":""}]
["(wraz z procentowym wkładem)"]
[null,null,null,{"$f":"IF(AND(D21=100,NOT(D23=\"\")),\"W przypadku 100% wkładu autorskiego, powyższe pole należy pozostawić puste.\",\"\")","v":""}]
[null,null,null,"Wkład autorski wszystkich współautorów musi sumować się do 100%.  \n"]
[null,null,null,"Należy podać w formacie „imię, nazwisko – procent” np. „Jan Kowalski – 25%”. "]
[]
["Uwagi (pole nieobowiązkowe)"]
[]
["Tekst poniżej do skopiowania do formularza wniosku (CTRL-C)",null,null,null,null,null,null,{"$f":"TEXT(L37,\"0%\")","v":"0%"},{"$f":"IF(H31=\"100%\",\"\",\"uzupełnij wymagane pola\")","v":"uzupełnij wymagane pola"}]
[{"$f":"IF(D5=\"\",\"\",D5&\") \"&I35&\", \"&D11&\", \"&I11&\", \"&D13&\", \"&I41&\", miejsce prezentacji: \"&D17&\" (\"&I17&\"), liczba widzów ok. \"&D19&\", \"&I44&\" (\"&I21&\"), wkład autorski: \"&D21&\"%, \"&I37&I40)","v":""}]
[]
[]
[null,null,null,"x","teatr",null,"reżyseria",null,{"$f":"TEXT(D9,\"dd.mm.rrrr\")","v":"00.01.1900"},null,null,{"$f":"SUM(O5:O28)","v":0},10]
[null,null,null,null,"opera",null,"scenografia"]
[null,null,null,null,"telewizja",null,"rola pierwszoplanowa",null,{"$f":"IF(D23=\"\",\"brak współautorów\",\"współautorstwo: \"&D23)","v":"brak współautorów"},null,null,{"$f":"L35/M35","v":0}]
[null,null,null,"a","przegląd",null,"rola drugoplanowa"]
[null,null,null,"b","festiwal"]
[null,null,null,"c",null,null,null,null,{"$f":"IF(D29=\"\",\"\",\", uwagi: \"&D29)","v":""}]
[null,null,null,"d",null,null,null,null,{"$f":"UPPER(D15)","v":""}]
[null,null,null,"e",null,null,null,null,{"$f":"IF(D7=\"x\",\"AUTOR\",\"\")","v":""}]
[null,null,null,"f",null,null,null,null,{"$f":"IF(H7=\"x\",\"WYKONAWCA\",\"\")","v":""}]
[null,null,null,"g",null,null,null,null,{"$f":"IF(AND(I42=\"autor\",I43=\"wykonawca\"),\"AUTOR i WYKONAWCA\",I42&I43)","v":""}]
[null,null,null,"h"]
[null,null,null,"i"]
[null,null,null,"j"]
[null,null,null,"k"]
[null,null,null,"l"]
[null,null,null,"m"]
[null,null,null,"n"]
[null,null,null,"o"]
[null,null,null,"p"]
[null,null,null,"q"]
[null,null,null,"r"]
[null,null,null,"s"]
[null,null,null,"t"]
[null,null,null,"u"]
[null,null,null,"w"]
[null,null,null,"x"]
[null,null,null,"y"]
[null,null,null,"z"]
[]
[]
[]
[null,null,null," "]

{"sheet":"C.2.5. CHOREOGRAFIE","index":10,"n_rows":64,"n_cols":22,"rows_kept":64,"cut":false,"hidden":false,"merged":[[16,3,16,4],[18,3,18,4],[20,3,21,12],[26,3,26,12],[2,0,2,12],[8,3,8,4],[10,3,10,4],[12,3,12,10],[14,3,14,12]]}
["5. Formy choreograficzne",null,null,null,null,null,null,null,null,null,null,null,null,null,null,null,null,null,null,null,null,"POWRÓT"]
[]
["Autorstwo formy choreograficznej zaprezentowanej na przeglądzie lub festiwalu o wysokim prestiżu i o co najmniej krajowym zasięgu lub w obiegu telewizyjnym\n\n\n\n"]
[]
["Oznaczenie dzieła",null,null,null,"oznaczenie literowe we wniosku (osiągnięcia w danej kategorii powinny być oznaczone kolejnymi literami alfabetu)",null,null,null,null,null,null,null,null,{"$f":"IF(D5=\"\",\"\",\"v\")","v":""},{"$f":"IF(N5=\"v\",1,0)","v":0}]
[]
["Autorstwo/wykonanie",null,null,null," autorstwo",null,null,null," wykonanie",null,{"$f":"IF(AND(D7=\"\",H7=\"\"),\"Proszę wybrać\",\"\")","v":"Proszę wybrać"},null,null,{"$f":"IF(OR(D7=\"x\",H7=\"x\"),\"v\",\"\")","v":""},{"$f":"IF(N7=\"v\",1,0)","v":0}]
[null,null,null,"Możliwy jest jednoczesny status autora i wykonawcy"]
["Data prezentacji",null,null,null,null,"Data prezentacji na danym przeglądzie lub festiwalu",null,null,null,null,null,null,null,{"$f":"IF(D9=\"\",\"\",\"v\")","v":""},{"$f":"IF(N9=\"v\",1,0)","v":0}]
[]
["Miejsce prezentacji",null,null,null,null,"Kraj siedziby wydawcy",null,null,null,"Miejscowość siedziby wydawcy",null,null,null,{"$f":"IF(AND(P11=\"v\",Q11=\"v\"),\"v\",\"\")","v":""},{"$f":"IF(N11=\"v\",1,0)","v":0},{"$f":"IF(D11=\"\",\"\",\"v\")","v":""},{"$f":"IF(I11=\"\",\"\",\"v\")","v":""}]
[]
["Miejsce prezentacji",null,null,null,null,null,null,null,null,null,null,null,null,{"$f":"IF(D13=\"\",\"\",\"v\")","v":""},0]
[null,null,null,"np. teatr (nazwa, tytuł), film (tytuł), etc. "]
["Rodzaj formy choreograficznej",null,null,null,null,null,null,null,null,null,null,null,null,{"$f":"IF(D15=\"\",\"\",\"v\")","v":""},{"$f":"IF(N15=\"v\",1,0)","v":0}]
[null,null,null,"np. rodzaj tańca"]
["Szacunkowa liczba widzów",null,null,null,null,null,null,null,null,null,null,null,null,{"$f":"IF(D17=\"\",\"\",\"v\")","v":""},{"$f":"IF(N17=\"v\",1,0)","v":0}]
[null,null,null,"W przypadku trudności z ustaleniem liczby widzów, należy skontaktować się z organizatorem prezentacji."]
["Wkład autorski studenta",null,null,null,null,"%",null,null,null,null,null,null,null,{"$f":"IF(D19=\"\",\"\",\"v\")","v":""},{"$f":"IF(N19=\"v\",1,0)","v":0}]
[null,null,null,{"$f":"IF(D21=\"\",IF(D19=\"\",\"\",IF(D19<100,\"Gdy wkład autorski jest mniejszy niż 100% należy wypełnić pole poniżej\",\"\")),\"\")","v":""}]
["Imiona i nazwiska współautorów",null,null,null,null,null,null,null,null,null,null,null,null,{"$f":"IF(OR(P21=\"v\",Q21=\"v\"),\"v\",\"\")","v":""},0,{"$f":"IF(D21=\"\",(IF(D19=100,\"v\",\"\")),\"\")","v":""},{"$f":"IF(NOT(D21=\"\"),(IF(NOT(D19=100),\"v\",\"\")),\"\")","v":""}]
["(wraz z procentowym wkładem)"]
[null,null,null,{"$f":"IF(AND(D19=100,NOT(D21=\"\")),\"W przypadku 100% wkładu autorskiego, powyższe pole należy pozostawić puste.\",\"\")","v":""}]
[null,null,null,"Wkład autorski wszystkich współautorów musi sumować się do 100%.  \n"]
[null,null,null,"Należy podać w formacie „imię, nazwisko – procent” np. „Jan Kowalski – 25%”. "]
[]
["Uwagi (pole nieobowiązkowe)"]
[]
["Tekst poniżej do skopiowania do formularza wniosku (CTRL-C)",null,null,null,null,null,null,{"$f":"TEXT(L35,\"0%\")","v":"0%"},{"$f":"IF(H29=\"100%\",\"\",\"uzupełnij wymagane pola\")","v":"uzupełnij wymagane pola"}]
[{"$f":"IF(D5=\"\",\"\",D5&\") \"&I33&\", \"&D11&\", \"&I11&\", miejsce prezentacji: \"&D13&\", rodzaj formy: \"&I39&\", liczba widzów ok. \"&D17&\", \"&I42&\", wkład autorski: \"&D19&\"%, \"&I35&I38)","v":""}]
[]
[]
[null,null,null,"x","teatr",null,"reżyseria",null,{"$f":"TEXT(D9,\"dd.mm.rrrr\")","v":"00.01.1900"},null,null,{"$f":"SUM(O5:O26)","v":0},9]
[null,null,null,null,"opera",null,"scenografia"]
[null,null,null,null,"telewizja",null,"rola pierwszoplanowa",null,{"$f":"IF(D21=\"\",\"brak współautorów\",\"współautorstwo: \"&D21)","v":"brak współautorów"},null,null,{"$f":"L33/M33","v":0}]
[null,null,null,"a","przegląd",null,"rola drugoplanowa"]
[null,null,null,"b","festiwal"]
[null,null,null,"c",null,null,null,null,{"$f":"IF(D27=\"\",\"\",\", uwagi: \"&D27)","v":""}]
[null,null,null,"d",null,null,null,null,{"$f":"UPPER(D15)","v":""}]
[null,null,null,"e",null,null,null,null,{"$f":"IF(D7=\"x\",\"AUTOR\",\"\")","v":""}]
[null,null,null,"f",null,null,null,null,{"$f":"IF(H7=\"x\",\"WYKONAWCA\",\"\")","v":""}]
[null,null,null,"g",null,null,null,null,{"$f":"IF(AND(I40=\"autor\",I41=\"wykonawca\"),\"AUTOR i WYKONAWCA\",I40&I41)","v":""}]
[null,null,null,"h"]
[null,null,null,"i"]
[null,null,null,"j"]
[null,null,null,"k"]
[null,null,null,"l"]
[null,null,null,"m"]
[null,null,null,"n"]
[null,null,null,"o"]
[null,null,null,"p"]
[null,null,null,"q"]
[null,null,null,"r"]
[null,null,null,"s"]
[null,null,null,"t"]
[null,null,null,"u"]
[null,null,null,"w"]
[null,null,null,"x"]
[null,null,null,"y"]
[null,null,null,"z"]
[]
[]
[]
[null,null,null," "]

{"sheet":"C.2.6. DZIEŁA PLAST. ARCHIT.","index":11,"n_rows":65,"n_cols":22,"rows_kept":65,"cut":false,"hidden":false,"merged":[[2,0,2,12],[7,3,7,4],[9,3,9,4],[11,3,11,10],[13,3,13,12],[19,3,19,4],[21,3,22,12],[27,3,27,12],[15,3,15,12],[17,3,17,10]]}
["6. Dzieło plastyczne lub architektoniczne",null,null,null,null,null,null,null,null,null,null,null,null,null,null,null,null,null,null,null,null,"POWRÓT"]
[]
["Autorstwo dzieła plastycznego lub architektonicznego zaprezentowanego na wystawie lub w galerii o wysokim prestiżu albo w przestrzeni publicznej\n\n\n\n"]
["Nie należy wskazywać indywidualnych autorskich wystaw plastycznych zorganizowanych przez instytucje kultury (są one wskazywane w C.2.7)."]
[]
["Oznaczenie dzieła",null,null,null,"oznaczenie literowe we wniosku (osiągnięcia w danej kategorii powinny być oznaczone kolejnymi literami alfabetu)",null,null,null,null,null,null,null,null,{"$f":"IF(D6=\"\",\"\",\"v\")","v":""},{"$f":"IF(N6=\"v\",1,0)","v":0}]
[]
["Data prezentacji",null,null,null,null,"W przypadku prezentacji trwających dłużej niż dzień należy wskazać datę początkową",null,null,null,null,null,null,null,{"$f":"IF(D8=\"\",\"\",\"v\")","v":""},{"$f":"IF(N8=\"v\",1,0)","v":0}]
[]
["Miejsce prezentacji",null,null,null,null,"Kraj siedziby wydawcy",null,null,null,"Miejscowość siedziby wydawcy",null,null,null,{"$f":"IF(AND(P10=\"v\",Q10=\"v\"),\"v\",\"\")","v":""},{"$f":"IF(N10=\"v\",1,0)","v":0},{"$f":"IF(D10=\"\",\"\",\"v\")","v":""},{"$f":"IF(I10=\"\",\"\",\"v\")","v":""}]
[]
["Rodzaj dzieła",null,null,null,null,null,null,null,null,null,null,null,null,{"$f":"IF(D12=\"\",\"\",\"v\")","v":""},{"$f":"IF(N12=\"v\",1,0)","v":0}]
[null,null,null,"np. grafika, malarstwo, ew. podać szczegółową technikę"]
["Tytuł dzieła",null,null,null,null,null,null,null,null,null,null,null,null,{"$f":"IF(D14=\"\",\"\",\"v\")","v":""},{"$f":"IF(N14=\"v\",1,0)","v":0}]
[]
["Nazwa wystawy, galerii, miejsca w przestrzeni",null,null,null,null,null,null,null,null,null,null,null,null,{"$f":"IF(D16=\"\",\"\",\"v\")","v":""},{"$f":"IF(N16=\"v\",1,0)","v":0}]
[]
["Nazwa organizatora prezentacji",null,null,null,null,null,null,null,null,null,null,null,null,{"$f":"IF(D18=\"\",\"\",\"v\")","v":""},{"$f":"IF(N18=\"v\",1,0)","v":0}]
[]
["Wkład autorski studenta",null,null,null,null,"%","W przypadku wystawy zbiorowej, wkład powinien dotyczyć wystawy, a nie wykonania dzieła",null,null,null,null,null,null,{"$f":"IF(D20=\"\",\"\",\"v\")","v":""},{"$f":"IF(N20=\"v\",1,0)","v":0}]
[null,null,null,{"$f":"IF(D22=\"\",IF(D20=\"\",\"\",IF(D20<100,\"Gdy wkład autorski jest mniejszy niż 100% należy wypełnić pole poniżej\",\"\")),\"\")","v":""}]
["Imiona i nazwiska współautorów",null,null,null,null,null,null,null,null,null,null,null,null,{"$f":"IF(OR(P22=\"v\",Q22=\"v\"),\"v\",\"\")","v":""},0,{"$f":"IF(D22=\"\",(IF(D20=100,\"v\",\"\")),\"\")","v":""},{"$f":"IF(NOT(D22=\"\"),(IF(NOT(D20=100),\"v\",\"\")),\"\")","v":""}]
["(wraz z procentowym wkładem)"]
[null,null,null,{"$f":"IF(AND(D20=100,NOT(D22=\"\")),\"W przypadku 100% wkładu autorskiego, powyższe pole należy pozostawić puste.\",\"\")","v":""}]
[null,null,null,"Wkład autorski wszystkich współautorów musi sumować się do 100%.  \n"]
[null,null,null,"Należy podać w formacie „imię, nazwisko – procent” np. „Jan Kowalski – 25%”. "]
[]
["Uwagi (pole nieobowiązkowe)"]
[]
["Tekst poniżej do skopiowania do formularza wniosku (CTRL-C)",null,null,null,null,null,null,{"$f":"TEXT(L36,\"0%\")","v":"0%"},{"$f":"IF(H30=\"100%\",\"\",\"uzupełnij wymagane pola\")","v":"uzupełnij wymagane pola"}]
[{"$f":"IF(D6=\"\",\"\",D6&\") \"&I34&\", \"&D10&\", \"&I10&\", rodzaj dzieła: \"&D12&\", tytuł dzieła: \"&I40&\", nazwa wystawy, galerii, miejsca: \"&I41&\", organizator: \"&D18&\", wkład autorski: \"&D20&\"%, \"&I36&I39)","v":""}]
[]
[]
[null,null,null,"x",null,null,null,null,{"$f":"TEXT(D8,\"dd.mm.rrrr\")","v":"00.01.1900"},null,null,{"$f":"SUM(O6:O27)","v":0},9]
[]
[null,null,null,null,null,null,null,null,{"$f":"IF(D22=\"\",\"brak współautorów\",\"współautorstwo: \"&D22)","v":"brak współautorów"},null,null,{"$f":"L34/M34","v":0}]
[null,null,null,"a"]
[null,null,null,"b"]
[null,null,null,"c",null,null,null,null,{"$f":"IF(D28=\"\",\"\",\", uwagi: \"&D28)","v":""}]
[null,null,null,"d",null,null,null,null,{"$f":"UPPER(D14)","v":""}]
[null,null,null,"e",null,null,null,null,{"$f":"UPPER(D16)","v":""}]
[null,null,null,"f"]
[null,null,null,"g"]
[null,null,null,"h"]
[null,null,null,"i"]
[null,null,null,"j"]
[null,null,null,"k"]
[null,null,null,"l"]
[null,null,null,"m"]
[null,null,null,"n"]
[null,null,null,"o"]
[null,null,null,"p"]
[null,null,null,"q"]
[null,null,null,"r"]
[null,null,null,"s"]
[null,null,null,"t"]
[null,null,null,"u"]
[null,null,null,"w"]
[null,null,null,"x"]
[null,null,null,"y"]
[null,null,null,"z"]
[]
[]
[]
[null,null,null," "]

{"sheet":"C.2.7. IND. WYSTAWY PLAST.","index":12,"n_rows":54,"n_cols":20,"rows_kept":54,"cut":false,"hidden":false,"merged":[[14,3,14,10],[16,3,16,12],[2,0,2,12],[6,3,6,4],[8,3,8,4],[10,3,10,10],[12,3,12,12]]}
["7. Autorskie wystawy plastyczne (indywidualne)",null,null,null,null,null,null,null,null,null,null,null,null,null,null,null,null,null,null,"POWRÓT"]
[]
["Indywidualna autorska wystawa plastyczna zorganizowana przez instytucję kultury o wysokim prestiżu\n\n\n\n\n"]
[]
["Oznaczenie dzieła",null,null,null,"oznaczenie literowe we wniosku (osiągnięcia w danej kategorii powinny być oznaczone kolejnymi literami alfabetu)",null,null,null,null,null,null,null,null,{"$f":"IF(D5=\"\",\"\",\"v\")","v":""},{"$f":"IF(N5=\"v\",1,0)","v":0}]
[]
["Data wystawy",null,null,null,null,"Data rozpoczęcia wystawy",null,null,null,"Data zakończenia wystawy",null,{"$f":"IF(I7=\"\",\"\",(1+(_xlfn.DAYS(I7,D7)))&\" dni\")","v":""},null,{"$f":"IF(AND(P7=\"v\",Q7=\"v\"),\"v\",\"\")","v":""},{"$f":"IF(N7=\"v\",1,0)","v":0},{"$f":"IF(D7=\"\",\"\",\"v\")","v":""},{"$f":"IF(I7=\"\",\"\",\"v\")","v":""}]
[]
["Miejsce wystawy",null,null,null,null,"Kraj siedziby wydawcy",null,null,null,"Miejscowość siedziby wydawcy",null,null,null,{"$f":"IF(AND(P9=\"v\",Q9=\"v\"),\"v\",\"\")","v":""},{"$f":"IF(N9=\"v\",1,0)","v":0},{"$f":"IF(D9=\"\",\"\",\"v\")","v":""},{"$f":"IF(I9=\"\",\"\",\"v\")","v":""}]
[]
["Miejsce wystawy",null,null,null,null,null,null,null,null,null,null,null,null,{"$f":"IF(D11=\"\",\"\",\"v\")","v":""},{"$f":"IF(N11=\"v\",1,0)","v":0}]
[null,null,null,"Nazwa galerii; nazwa wystawy"]
["Tytuł dzieła",null,null,null,null,null,null,null,null,null,null,null,null,{"$f":"IF(D13=\"\",\"\",\"v\")","v":""},{"$f":"IF(N13=\"v\",1,0)","v":0}]
[null,null,null,"Tytuł/tytuły dzieł plastycznych przedstawionych na wystawie"]
["Nazwa organizatora wystawy",null,null,null,null,null,null,null,null,null,null,null,null,{"$f":"IF(D15=\"\",\"\",\"v\")","v":""},{"$f":"IF(N15=\"v\",1,0)","v":0}]
[null,null,null,"Nazwa instytucji kultury o wysokim prestiżu"]
["Uwagi (pole nieobowiązkowe)"]
[]
["Tekst poniżej do skopiowania do formularza wniosku (CTRL-C)",null,null,null,null,null,null,{"$f":"TEXT(L25,\"0%\")","v":"0%"},{"$f":"IF(H19=\"100%\",\"\",\"uzupełnij wymagane pola\")","v":"uzupełnij wymagane pola"}]
[{"$f":"IF(D5=\"\",\"\",D5&\") \"&I23&\"-\"&I24&\" (\"&L7&\"), \"&D9&\", \"&I9&\", miejsce wystawy: \"&D11&\", zaprezentowane dzieło/dzieła: \"&I29&\", organizator: \"&D15&I28)","v":""}]
[]
[]
[null,null,null,"x",null,null,null,null,{"$f":"TEXT(D7,\"dd.mm.rrrr\")","v":"00.01.1900"},null,null,{"$f":"SUM(O5:O16)","v":0},6]
[null,null,null,null,null,null,null,null,{"$f":"TEXT(I7,\"dd.mm.rrrr\")","v":"00.01.1900"}]
[null,null,null,null,null,null,null,null,null,null,null,{"$f":"L23/M23","v":0}]
[null,null,null,"a"]
[null,null,null,"b"]
[null,null,null,"c",null,null,null,null,{"$f":"IF(D17=\"\",\"\",\", uwagi: \"&D17)","v":""}]
[null,null,null,"d",null,null,null,null,{"$f":"UPPER(D13)","v":""}]
[null,null,null,"e"]
[null,null,null,"f"]
[null,null,null,"g"]
[null,null,null,"h"]
[null,null,null,"i"]
[null,null,null,"j"]
[null,null,null,"k"]
[null,null,null,"l"]
[null,null,null,"m"]
[null,null,null,"n"]
[null,null,null,"o"]
[null,null,null,"p"]
[null,null,null,"q"]
[null,null,null,"r"]
[null,null,null,"s"]
[null,null,null,"t"]
[null,null,null,"u"]
[null,null,null,"w"]
[null,null,null,"x"]
[null,null,null,"y"]
[null,null,null,"z"]
[]
[]
[]
[null,null,null," "]

{"sheet":"C.2.8. NAGR. ARTYST.","index":13,"n_rows":76,"n_cols":19,"rows_kept":76,"cut":false,"hidden":false,"merged":[[2,0,2,12],[13,3,13,4],[15,3,15,4],[17,3,17,12],[19,3,19,4],[19,8,19,11],[30,3,31,12],[34,3,34,4],[36,3,36,11],[38,3,38,12],[20,3,20,6],[20,8,20,12],[21,3,21,4],[24,3,24,12],[26,3,26,6],[28,3,28,4]]}
["8. Uzyskane nagrody artystyczne",null,null,null,null,null,null,null,null,null,null,null,null,null,null,null,null,null,"POWRÓT"]
[]
["Uzyskanie nagrody indywidualnej lub znaczący udział w powstaniu osiągnięcia, za które uzyskano nagrodę zespołową w konkursie, na przeglądzie lub festiwalu muzycznym, teatralnym, filmowym, plastycznym lub architektonicznym o wysokim prestiżu i o zasięgu międzynarodowym:\n\n\n"]
["Wyjaśnienie:"]
["We wniosku można wskazać wyłącznie:"]
["·        nagrody w konkursach o zasięgu międzynarodowym (konkurs musi być skierowany do artystów z różnych krajów, a międzynarodowy charakter musi wynikać z regulaminu konkursu) "]
["·        nagrody w klasyfikacji generalnej konkursu międzynarodowego, w tym nagrody w poszczególnych w kategoriach głównych (jeżeli regulamin przewiduje klasyfikację generalną dla danej kategorii) "]
["Nie należy wskazywać:"]
["·        nagród w poszczególnych etapach konkursu międzynarodowego (etap krajowy, regionalny) czy w konkurencjach cząstkowych konkursu."]
["·        wyróżnień uzyskanych w konkursie (punktowane są tylko nagrody)"]
[]
["Oznaczenie nagrody",null,null,null,"oznaczenie literowe we wniosku (osiągnięcia w danej kategorii powinny być oznaczone kolejnymi literami alfabetu)",null,null,null,null,null,null,null,null,{"$f":"IF(D12=\"\",\"\",\"v\")","v":""},{"$f":"IF(N12=\"v\",1,0)","v":0}]
[]
["Data uzyskania nagrody",null,null,null,null,"Data uzyskania nagrody (a nie data konkursu - można ją ew. podać w uwagach)",null,null,null,null,null,null,null,{"$f":"IF(D14=\"\",\"\",\"v\")","v":""},{"$f":"IF(N14=\"v\",1,0)","v":0}]
[]
["Miejsce uzyskania nagrody",null,null,null,null,"Kraj",null,null,null,"Miejscowość",null,null,null,{"$f":"IF(AND(P16=\"v\",Q16=\"v\"),\"v\",\"\")","v":""},{"$f":"IF(N16=\"v\",1,0)","v":0},{"$f":"IF(D16=\"\",\"\",\"v\")","v":""},{"$f":"IF(I16=\"\",\"\",\"v\")","v":""}]
[]
["Nazwa konkursu, przeglądu, festiwalu",null,null,null,null,null,null,null,null,null,null,null,null,{"$f":"IF(D18=\"\",\"\",\"v\")","v":""},{"$f":"IF(N18=\"v\",1,0)","v":0}]
[]
["Uzyskane miejsce",null,null,null,null,null,null,"miejsce dotyczy",null,null,null,null,null,{"$f":"IF(D20=\"\",\"\",\"v\")","v":""},{"$f":"IF(N20=\"v\",1,0)","v":0}]
[null,null,null,"W przypadku braku uzyskanego miejsca lub niemożności określenia miejsca należy wskazać liczbę 0 i opisać przyczynę w polu „uwagi”.",null,null,null,null,"Jeżeli konkurs ma jeden ranking i jednego zwycięzcę, należy wybrać „całego konkursu”. Jeżeli w konkursie zawody rozgrywają się w kilku odmiennych kategoriach (np. portret, pejzaż, zwierzęta) należy wybrać  „w kategorii konkursu”. \n"]
["Liczba uczestników konkursu",null,null,null,null,null,null,null,null,null,null,null,null,{"$f":"IF(D22=\"\",\"\",\"v\")","v":""},{"$f":"IF(N22=\"v\",1,0)","v":0}]
[null,null,null,"W przypadku trudności z ustaleniem liczby uczestników, należy skontaktować się z organizatorem."]
[null,null,null,"Liczba uczestników konkursu może być wartością szacunkową."]
["Nazwa nagrody",null,null,null,null,null,null,null,null,null,null,null,null,{"$f":"IF(D25=\"\",\"\",\"v\")","v":""},{"$f":"IF(N25=\"v\",1,0)","v":0}]
[null,null,null,"Należy nazwę nagrody (np. grand prix, gold medal), oraz ew. w jakiej kategorii (np. portret, pejzaż)."]
["Rodzaj nagrody",null,null,null,null,null,null,null,null,null,null,null,null,{"$f":"IF(OR(D27=G45,D27=G46),\"v\",\"\")","v":""},0]
[null,null,null,null,null,null,null,{"$f":"IF(D29=\"\",\"\",IF(AND(D29<100,D27=G45),\"czy na pewno nagroda jest indywidualna, a wkład studenta mniejszy niż 100%?\",\"\"))","v":""}]
["Wkład w uzyskanie nagrody",null,null,null,null,"%",null,{"$f":"IF(AND(D29=100,D27=G46),\"czy na pewno nagroda jest zespołowa, a wkład studenta 100%?\",\"\")","v":""},null,null,null,null,null,{"$f":"IF(D29=\"\",\"\",\"v\")","v":""},0]
[null,null,null,{"$f":"IF(D29=\"\",\"\",IF(D29<100,\"Gdy wkład jest mniejszy niż 100% należy wypełnić pole poniżej\",\"\"))","v":""}]
["Imiona i nazwiska członków zespołu",null,null,null,null,null,null,null,null,null,null,null,null,{"$f":"IF(OR(P31=\"v\",Q31=\"v\"),\"v\",\"\")","v":""},0,{"$f":"IF(D31=\"\",(IF(D29=100,\"v\",\"\")),\"\")","v":""},{"$f":"IF(NOT(D31=\"\"),(IF(NOT(D29=100),\"v\",\"\")),\"\")","v":""}]
["(wraz z procentowym wkładem)"]
[null,null,null,"Wkład procentowy wszystkich członków zespołu musi sumować się do 100%.  \n"]
[null,null,null,"Należy podać w formacie „imię, nazwisko – procent” np. „Jan Kowalski – 25%”. "]
["Liczba reprezentowanych państw",null,null,null,null,null,null,null,null,null,null,null,null,{"$f":"IF(D35=\"\",\"\",\"v\")","v":""},{"$f":"IF(N35=\"v\",1,0)","v":0}]
[null,null,null,"W przypadku trudności z ustaleniem liczby państw, należy skontaktować się z organizatorem."]
["Nazwa organizatora",null,null,null,null,null,null,null,null,null,null,null,null,{"$f":"IF(D37=\"\",\"\",\"v\")","v":""},{"$f":"IF(N37=\"v\",1,0)","v":0}]
[null,null,null,"Należy wskazać wszystkich współorganizatorów konkursu, a  nie tylko organizatora głównego."]
["Uwagi (pole nieobowiązkowe)"]
[null,null,null,{"$f":"IF(D20=\"\",\"\",IF(D20=0,\"Należy wyjaśnić w polu powyżej przyczyny niemożności wskazania miejsca w konkursie\",\"\"))","v":""}]
["Tekst poniżej do skopiowania do formularza wniosku (CTR-C)",null,null,null,null,null,null,{"$f":"TEXT(L47,\"0%\")","v":"0%"},{"$f":"IF(H41=\"100%\",\"\",\"uzupełnij wymagane pola\")","v":"uzupełnij wymagane pola"}]
[{"$f":"IF(D12=\"\",\"\",D12&\") \"&I48&\", \"&D16&\", \"&I16&\", \"&I53&\", miejsce: \"&I46&\" (\"&I20&\"), liczba uczestników: \"&D22&\", nazwa: \"&D25&\", rodzaj: \"&I51&\", wkład: \"&D29&\"%, \"&I47&\", liczba państw: \"&D35&\", organizator: \"&D37&I50)","v":""}]
[]
[]
[null,null,null,"x","klasyfikacja generalna całego konkursu",null,"indywidualna",null,null,null,null,{"$f":"SUM(O12:O37)","v":0},12]
[null,null,null,null,"klasyfikacja  w kategorii konkursu",null,"zespołowa",null,{"$f":"IF(D20=0,\"nieokreślone\",D20)","v":"nieokreślone"}]
[null,null,null,null,null,null,null,null,{"$f":"IF(D31=\"\",\"brak zespołu\",\"członkowie zespołu: \"&D31)","v":"brak zespołu"},null,null,{"$f":"L45/M45","v":0}]
[null,null,null,"a",null,null,null,null,{"$f":"TEXT(D14,\"dd.mm.rrrr\")","v":"00.01.1900"}]
[null,null,null,"b"]
[null,null,null,"c",null,null,null,null,{"$f":"IF(D39=\"\",\"\",\", uwagi: \"&D39)","v":""}]
[null,null,null,"d",null,null,null,null,{"$f":"UPPER(D27)","v":""}]
[null,null,null,"e"]
[null,null,null,"f",null,null,null,null,{"$f":"UPPER(D18)","v":""}]
[null,null,null,"g"]
[null,null,null,"h"]
[null,null,null,"i"]
[null,null,null,"j"]
[null,null,null,"k"]
[null,null,null,"l"]
[null,null,null,"m"]
[null,null,null,"n"]
[null,null,null,"o"]
[null,null,null,"p"]
[null,null,null,"q"]
[null,null,null,"r"]
[null,null,null,"s"]
[null,null,null,"t"]
[null,null,null,"u"]
[null,null,null,"w"]
[null,null,null,"x"]
[null,null,null,"y"]
[null,null,null,"z"]
[]
[]
[]
[null,null,null," "]

{"sheet":"C.3. SPORTOWE","index":14,"n_rows":107,"n_cols":20,"rows_kept":107,"cut":false,"hidden":false,"merged":[[2,0,2,12],[12,3,12,4],[14,3,14,4],[18,3,18,12],[20,3,20,4],[20,8,20,11],[8,3,8,4],[11,3,11,12],[9,8,9,12],[10,3,10,10],[16,3,16,10],[32,11,32,12],[32,13,32,14],[31,0,31,1],[31,2,31,3],[31,4,31,6],[31,7,31,8],[31,9,31,10],[31,11,31,12],[32,0,32,1],[32,2,32,3],[32,4,32,6],[32,7,32,8],[32,9,32,10],[31,13,31,14],[26,3,27,12],[19,3,19,12],[22,3,22,6],[21,3,21,6],[21,8,21,12],[24,3,24,6]]}
["C.3. OSIĄGNIĘCIA SPORTOWE",null,null,null,null,null,null,null,null,null,null,null,null,null,"POWRÓT"]
[]
["Zajęcie w rywalizacji indywidualnej albo drużynowej, w których działają polskie związki sportowe, \n\nW SPORTACH OLIMPIJSKICH, PARAOLIMPIJSKICH, OBJETYCH PROGRAMEM IGRZYSK GŁUCHYCH \nco najmniej:\n  16 miejsca w igrzyskach olimpijskich, igrzyskach paraolimpijskich lub igrzyskach głuchych,\n  8 miejsca w mistrzostwach świata,\n  6 miejsca w mistrzostwach Europy,\n  3 miejsca w młodzieżowych mistrzostwach świata lub Europy,\n  1 miejsca w mistrzostwach Polski rozgrywanych w kategorii seniora,\n       - również  w ww. zawodach organizowanych dla osób niepełnosprawnych\nW SPORTACH NIEOLIMPIJSKICH\n  co najmniej 3 miejsca w uniwersjadzie, akademickich mistrzostwach świata, akademickich mistrzostwach Europy, Europejskich Igrzyskach Studentów.\n\n\n"]
["Wyjaśnienie:"]
["We wniosku można wskazać wyłącznie uzyskane miejsca w zawodach z powyższego katalogu punktowanych wyników. Inne wyniki sportowe nie będą punktowane."]
[]
["Oznaczenie wyniku sportowego",null,null,null,"oznaczenie literowe we wniosku (osiągnięcia w danej kategorii powinny być oznaczone kolejnymi literami alfabetu)",null,null,null,null,null,null,null,null,{"$f":"IF(D7=\"\",\"\",\"v\")","v":""},null,null,null,{"$f":"IF(N7=\"v\",1,0)","v":0}]
[]
["Sport",null,null,null,null,"Nazwa sportu",null,null,"Sport olimpijski, paraolimpijski lub objęty programem igrzysk głuchych",null,null,null,null,{"$f":"IF(AND(S9=\"v\",T9=\"v\"),\"v\",\"\")","v":""},null,null,null,{"$f":"IF(N9=\"v\",1,0)","v":0},{"$f":"IF(D9=\"\",\"\",\"v\")","v":""},{"$f":"IF(H9=\"\",\"\",\"v\")","v":""}]
[null,null,null,null,null,null,null,null,{"$f":"IF(H9=\"nie\",\"W przypadku sportów nieolimpijskich we wniosku można wskazać jedynie osiągnięcia w uniwersjadzie, akademickich mistrzostwach świata/Europy lub Europejskich Igrzyskach Studentów. Inne zawody nie będą uwzględniane przy ocenie.\",\"\")","v":""}]
["Polski związek sportowy",null,null,null,null,null,null,null,null,null,null,null,null,{"$f":"IF(D11=\"\",\"\",\"v\")","v":""},null,null,null,{"$f":"IF(N11=\"v\",1,0)","v":0}]
[null,null,null,"Osiągnięć w sportach, w których nie działają polskie związki sportowe nie należy podawać we wniosku."]
["Data zawodów",null,null,null,null,"Data rozpoczęcia zawodów",null,null,null,"Data uzyskania wyniku sportowego",null,null,null,{"$f":"IF(AND(S13=\"v\",T13=\"v\"),\"v\",\"\")","v":""},null,null,null,{"$f":"IF(N13=\"v\",1,0)","v":0},{"$f":"IF(D13=\"\",\"\",\"v\")","v":""},{"$f":"IF(I13=\"\",\"\",\"v\")","v":""}]
[]
["Miejsce zawodów",null,null,null,null,"Miejscowość",null,null,null,"Miejscowość",null,null,null,{"$f":"IF(AND(S15=\"v\",T15=\"v\"),\"v\",\"\")","v":""},null,null,null,{"$f":"IF(N15=\"v\",1,0)","v":0},{"$f":"IF(D15=\"\",\"\",\"v\")","v":""},{"$f":"IF(I15=\"\",\"\",\"v\")","v":""}]
[]
["Rodzaj zawodów",null,null,null,null,null,null,null,null,null,null,null,null,{"$f":"IF(D17=\"\",\"\",\"v\")","v":""},null,null,null,{"$f":"IF(N17=\"v\",1,0)","v":0}]
[null,null,null,{"$f":"IF(OR(H9=\"\",D17=\"\",H9=\"tak\"),\"\",IF(AND(H9=\"nie\",(OR(D17=E36,D17=E37,D17=E38,D17=E39,D17=E40,D17=E41))),\"\",\"Niedozwolone zawody w przypadku gdy sport jest nieolimpijski\"))","v":""}]
["Nazwa zawodów",null,null,null,null,null,null,null,null,null,null,null,null,{"$f":"IF(D19=\"\",\"\",\"v\")","v":""},null,null,null,{"$f":"IF(N19=\"v\",1,0)","v":0}]
[null,null,null,"Należy wskazać pełną nazwę zawodów, a w przypadku zawodów rozgrywanych za granicą - nazwę w języku angielskim."]
["Uzyskane miejsce",null,null,null,null,null,null,"dyscyplina",null,null,null,null,null,{"$f":"IF(AND(S21=\"v\",T21=\"v\"),\"v\",\"\")","v":""},null,null,null,{"$f":"IF(N21=\"v\",1,0)","v":0},{"$f":"IF(D21=\"\",\"\",\"v\")","v":""},{"$f":"IF(I21=\"\",\"\",\"v\")","v":""}]
[null,null,null,{"$f":"O46","v":""},null,null,null,null,"Należy podać pełną nazwę dyscypliny, ew. z dystansem (np. bieg na 400 m)\n"]
["Kategoria wiekowa",null,null,null,null,null,null,null,null,null,null,null,null,{"$f":"IF(OR(D23=E52,D23=E53,D23=E54,D23=E55),\"v\",\"\")","v":""},null,null,null,{"$f":"IF(N23=\"v\",1,0)","v":0}]
[]
["Rodzaj rywalizacji",null,null,null,null,null,null,null,null,null,null,null,null,{"$f":"IF(OR(D25=E49,D25=E50),\"v\",\"\")","v":""},null,null,null,{"$f":"IF(N25=\"v\",1,0)","v":0}]
[null,null,null,{"$f":"IF(D27=\"\",IF(D25=E50,\"Proszę wskazać skład drużyny\",\"\"),\"\")","v":""}]
["Skład drużyny",null,null,null,null,null,null,null,null,null,null,null,null,{"$f":"IF(OR(S27=\"v\",T27=\"v\"),\"v\",\"\")","v":""},null,null,null,{"$f":"IF(N27=\"v\",1,0)","v":0},{"$f":"IF(AND(D25=E49,D27=\"\"),\"v\",\"\")","v":""},{"$f":"IF(AND(D25=E50,NOT(D27=\"\")),\"v\",\"\")","v":""}]
[]
[null,null,null,"Należy podać w formacie „imię nazwisko\"."]
[null,null,null,"Należy wypełnic tylko w przypadku rywalizacji drużynowej."]
["Tekst poniżej do skopiowania do tabeli formularza wniosku (CTR-C)",null,null,null,null,null,null,{"$f":"TEXT(L38,\"0%\")","v":"0%"},{"$f":"IF(H31=\"100%\",\"\",\"uzupełnij wymagane pola\")","v":"uzupełnij wymagane pola"}]
["Uzyskane miejsce",null,"Nazwa zawodów",null,"Dyscyplina sportowa",null,null,"Rodzaj rywalizacji",null,"Kategoria wiekowa",null,"Skład drużyny (w przypadku nagrody drużynowej)",null,"Data i miejsce zawodów"]
[{"$f":"D21&\" miejsce\"","v":" miejsce"},null,{"$f":"D19&\" (\"&D17&\")\"","v":" ()"},null,{"$f":"I21&\" (\"&D9&\") - \"&I41","v":" () - sport nieolimpijski"},null,null,{"$f":"D25","v":0},null,{"$f":"D23","v":0},null,{"$f":"IF(D27=\"\",\"\",D27)","v":""},null,{"$f":"I39&\", \"&I15&\", \"&D15&\" (wynik: \"&I40&\")\"","v":"01.1900, ,  (wynik: 00.01.1900)"}]
[]
[]
["Aeroklub Polski",null,null,"x","Igrzyska olimpijskie, paraolimpijskie, głuchych",null,null,null,"indywidualna",null,null,{"$f":"SUM(R7:R30)","v":0},11,null,{"$f":"IF(AND(D17=E36,D21>16),\"Wynik nie kwalifikuje się\",\"\")","v":""}]
["Polska Federacja Petanque – Polski Związek Sportowy",null,null,null,"mistrzostwa świata",null,null,null,null,null,null,null,null,null,{"$f":"IF(AND(D17=E37,D21>8),\"Wynik nie kwalifikuje się\",\"\")","v":""}]
["Polski Związek Alpinizmu",null,null,null,"mistrzostwa Europy",null,null,null,null,null,null,{"$f":"L36/M36","v":0},null,null,{"$f":"IF(AND(D17=E38,D21>6),\"Wynik nie kwalifikuje się\",\"\")","v":""}]
["Polski Związek Badmintona",null,null,"a","młodzieżowe mistrzostwa świata",null,null,null,{"$f":"TEXT(D13,\"mm.rrrr\")","v":"01.1900"},null,null,null,null,null,{"$f":"IF(AND(D17=E39,D21>3),\"Wynik nie kwalifikuje się\",\"\")","v":""}]
["Polski Związek Baseballu i Softballu",null,null,"b","młodzieżowe mistrzostwa Europy",null,null,null,{"$f":"TEXT(I13,\"dd.mm.rrrr\")","v":"00.01.1900"},null,null,null,null,null,{"$f":"IF(AND(D17=E40,D21>3),\"Wynik nie kwalifikuje się\",\"\")","v":""}]
["Polski Związek Biathlonu",null,null,"c","mistrzostwa Polski",null,null,null,{"$f":"IF(H9=\"tak\",\"sport olimpijski\",\"sport nieolimpijski\")","v":"sport nieolimpijski"},null,null,null,null,null,{"$f":"IF(AND(D17=E41,D21>1),\"Wynik nie kwalifikuje się\",\"\")","v":""}]
["Polski Związek Bilardowy",null,null,"d","akademickie mistrzostwa świata",null,null,null,{"$f":"UPPER(D25)","v":""},null,null,null,null,null,{"$f":"IF(AND(D17=E42,D21>3),\"Wynik nie kwalifikuje się\",\"\")","v":""}]
["Polski Związek Bobslei i Skeletonu",null,null,"e","akademickie mistrzostwa Europy",null,null,null,null,null,null,null,null,null,{"$f":"IF(AND(D17=E43,D21>3),\"Wynik nie kwalifikuje się\",\"\")","v":""}]
["Polski Związek Bocci",null,null,"f","uniwersjada/Europejskie Igrzyska Studentów",null,null,null,{"$f":"UPPER(D19)","v":""},null,null,null,null,null,{"$f":"IF(AND(D17=E44,D21>3),\"Wynik nie kwalifikuje się\",\"\")","v":""}]
["Polski Związek Bokserski",null,null,"g"]
["Polski Związek Brydża Sportowego",null,null,"h","tak",null,null,null,null,null,null,null,null,null,{"$f":"O36&O37&O38&O39&O40&O41&O42&O43&O44","v":""}]
["Polski Związek Curlingu",null,null,"i","nie"]
["Polski Związek Gimnastyczny",null,null,"j"]
["Polski Związek Golfa",null,null,"k","indywidualna"]
["Polski Związek Hokeja na Lodzie",null,null,"l","drużynowa"]
["Polski Związek Hokeja na Trawie",null,null,"m"]
["Polski Związek Jeździecki",null,null,"n","senior"]
["Polski Związek Judo",null,null,"o","junior"]
["Polski Związek Ju - Jitsu",null,null,"p","młodzieżowiec"]
["Polski Związek Kajakowy",null,null,"q","inna"]
["Polski Związek Karate",null,null,"r"]
["Polski Związek Karate Tradycyjnego",null,null,"s"]
["Polski Związek Kendo",null,null,"t"]
["Polski Związek Kickboxingu",null,null,"u"]
["Polski Związek Kolarski",null,null,"w"]
["Polski Związek Korfballu",null,null,"x"]
["Polski Związek Koszykówki",null,null,"y"]
["Polski Związek Kręglarski",null,null,"z"]
["Polski Związek Kulturystyki, Fitness i Trójboju Siłowego"]
["Polski Związek Lekkiej Atletyki"]
["Polski Związek Łuczniczy"]
["Polski Związek Łyżwiarstwa Figurowego",null,null," "]
["Polski Związek Łyżwiarstwa Szybkiego"]
["Polski Związek Motorowodny i Narciarstwa Wodnego"]
["Polski Związek Motorowy"]
["Polski Związek Muaythai"]
["Polski Związek Narciarski"]
["Polski Związek Orientacji Sportowej"]
["Polski Związek Pięcioboju Nowoczesnego"]
["Polski Związek Piłki Nożnej"]
["Polski Związek Piłki Siatkowej"]
["Polski Związek Płetwonurkowania"]
["Polski Związek Pływacki"]
["Polski Związek Podnoszenia Ciężarów"]
["Polski Związek Przeciągania Liny"]
["Polski Związek Sportu Psich Zaprzęgów"]
["Polski Związek Rugby"]
["Polski Związek Snookera i Bilarda Angielskiego"]
["Polski Związek Snowboardu w likwidacji"]
["Polski Związek Squasha"]
["Polski Związek Sportowy Cheerleadingu"]
["Polski Związek Sportów Saneczkowych"]
["Polski Związek Sportów Wrotkarskich"]
["Polski Związek Strzelectwa Sportowego"]
["Polski Związek Sumo"]
["Polski Związek Szachowy"]
["Polski Związek Szermierczy"]
["Polski Związek Taekwon-do"]
["Polski Związek Taekwondo Olimpijskiego"]
["Polski Związek Tańca Sportowego"]
["Polski Związek Tenisa Stołowego"]
["Polski Związek Tenisowy"]
["Polski Związek Towarzystw Wioślarskich"]
["Polski Związek Triathlonu"]
["Polski Związek Unihokeja"]
["Polski Związek Wushu"]
["Polski Związek Zapaśniczy"]
["Polski Związek Żeglarski"]
["Związek Piłki Ręcznej w Polsce"]
["Polski Związek Sportu Niesłyszących"]
["Organizacja pozarządowa"]
["Inny"]

{"sheet":"Instrukcje NA","index":15,"n_rows":117,"n_cols":14,"rows_kept":117,"cut":false,"hidden":false,"merged":[]}
["Instrukcja dla osiągnięć naukowych i artystycznych",null,null,null,null,null,null,null,null,null,null,null,null,"POWRÓT"]
["KROK 1. WYPEŁNIJ POSZCZEGÓLNE POLA ZGODNIE Z WSKAZÓWKAMI. ZIELONY SYMBOL OZNACZA PRAWIDŁOWE WYPEŁNIENIE POLA."]
[]
[]
[]
[]
[]
[]
[]
[]
[]
[]
[]
[]
[]
[]
[]
[]
[]
[]
[]
["KROK 2. GDY WSZYSTKIE POLA SĄ WYPEŁNIONE (POSTĘP WYNOSI 100%), KLIKNIJ NA PRZYCISK \"KOPIUJ DO SCHOWKA\""]
[]
[]
[]
[]
[]
[]
[]
[]
[]
[]
[]
[]
[]
[]
[]
[]
["KROK 3. PRZEJDŹ DO PLIKU WORD \"WZÓR WNIOSKU\" DO ODPOWIEDNIEJ KATEGORII OSIĄGNIĘĆ I UMIEŚĆ KURSOR W ZAZNACZONYM MIEJSCU"]
[]
[]
[]
[]
[]
[]
[]
[]
[]
[]
[]
[]
[]
[]
[]
[]
[]
[]
[]
[]
[]
[]
[]
[]
[]
[]
[]
[]
[]
[]
["KROK 4. WYBIERZ OPCJĘ \"WKLEJ\" --> \"ZACHOWAJ TYLKO TEKST\""]
[]
[]
[]
[]
[]
[]
[]
[]
[]
[]
[]
[]
[]
[]
[]
[]
[]
[]
[]
[]
[]
[]
[]
[]
[]
[]
["KROK 5. GOTOWE. KOLEJNE OSIĄGNIĘCIA Z DANEJ KATEGORII DODAWAj W ANALOGICZNY SPOSÓB (KOLEJNA LITERA ALFABETU)"]
[]
[]
[]
[]
[]
[]
[]
[]
[]
[]
[]
[]
[]
[]
[]
[]
[]
[]
[]
[null,null,null,null,null,null,null,null,null,null,null,null,null,"POWRÓT"]

{"sheet":"Instrukcje S","index":16,"n_rows":106,"n_cols":14,"rows_kept":106,"cut":false,"hidden":false,"merged":[]}
["Instrukcja dla osiągnięć sportowych",null,null,null,null,null,null,null,null,null,null,null,null,"POWRÓT"]
["KROK 1. WYPEŁNIJ POSZCZEGÓLNE POLA ZGODNIE Z WSKAZÓWKAMI. ZIELONY SYMBOL OZNACZA PRAWIDŁOWE WYPEŁNIENIE POLA."]
[]
[]
[]
[]
[]
[]
[]
[]
[]
[]
[]
[]
[]
[]
[]
[]
[]
[]
[]
["KROK 2. GDY WSZYSTKIE POLA SĄ WYPEŁNIONE (POSTĘP WYNOSI 100%), KLIKNIJ NA PRZYCISK \"KOPIUJ WIERSZDO SCHOWKA\""]
[]
[]
[]
[]
[]
[]
[]
[]
[]
[]
[]
[]
[]
[]
[]
[]
[]
[]
[]
[]
[]
["KROK 3. PRZEJDŹ DO PLIKU WORD \"WZÓR WNIOSKU\" DO TABELI Z OSIĄGNIĘCIAMI SPORTOWYMI (C.3) I UMIEŚĆ KURSOR W ZAZNACZONYM MIEJSCU"]
[]
[]
[]
[]
[]
[]
[]
[]
[]
[]
[]
[]
[]
[]
[]
[]
[]
[]
[]
[]
[]
[]
[]
[]
[]
[]
["KROK 4. WYBIERZ OPCJĘ \"WKLEJ\" --> \"ZASTĄP KOMÓRKI\""]
[]
[]
[]
[]
[]
[]
[]
[]
[]
[]
[]
[]
[]
[]
[]
[]
[]
[]
[]
[]
[]
[]
[]
[]
[]
[]
[]
[]
[]
[]
[]
[]
["KROK 5. GOTOWE. KOLEJNE OSIĄGNIĘCIA SPORTOWE DODAWAJ W ANALOGICZNY SPOSÓB (KOLEJNA LITERA ALFABETU)"]
[]
[null,null,null,null,null,null,null,null,null,null,null,null,null,"POWRÓT"]